Cogmind - Beta 15 @@@ ROGUE MODE // 2025.09.19 @ 22:57:46 Player: Spoodle Result: Destroyed by Enhanced Grunt with Neutron Cannon Performance ------------- Evolutions (9) 4500 Regions Visited (33) 6600 Robots Destroyed (424) 2120 Value Destroyed (16092) 16092 Prototype IDs (114) 2280 Alien Tech Used (12) 2400 Bonus (12674) 12674 TOTAL SCORE: 46666 Bonus ------- High Alert Combat Kills 885 Follower Combat Kills 2400 Entered Garrisons 800 Used RIF Installer 2000 Network Hubs Disabled 800 Aligned with FarCom 300 Built Enhanced Grunts 300 A7 Reached Mainframe 300 Met R17 at Cetus 500 Met MAIN.C 5000 Met Architect 300 Friendly Fire -911 Cogmind --------- Core Integrity 0/1600 Matter 233/300 Energy 98/100 System Corruption 14% Temperature Cool (0) Movement Core (50) Location -1/Access_0 Parts ------- > --- POWER (3) -------- (None) > --- PROPULSION (7) --- (None) > --- UTILITY (13) ----- Experimental Signal Interpreter Experimental Terrain Scan Processor Improved Hacking Suite Advanced Hacking Suite > --- WEAPON (3) ------- (None) > --- INVENTORY (9) ---- Compact Particle Reactor Quantum Shading Machine Fusion Bomb Launcher Core Stripper Peak State ------------ > --- POWER ------------ Compact Particle Reactor Light Quantum Reactor Light Quantum Reactor > --- PROPULSION ------- Flying Fortress v7 Impulse Thruster Array Experimental Q-thruster > --- UTILITY ---------- Large Storage Unit Quantum Shading Machine Long-range Sensor Array Experimental Signal Interpreter Long-range Terrain Scanner Experimental Terrain Scan Processor Experimental Utility Shielding Centrium Medium Armor Plating Improved Hacking Suite Improved Hacking Suite Advanced Hacking Suite Advanced Hacking Suite Relay Coupler [NC] > --- WEAPON ----------- Neutron Cannon Firepult > --- INVENTORY -------- Compact Particle Reactor Cooled Impulse Thruster Advanced Coolant Injector Experimental Coolant Injector Advanced ECM Suite Advanced Cloaking Device Experimental Utility Shielding Relay Coupler [NC] Transdimensional Reconstructor Core Regenerator Integrity Redistributor Subatomic Replicator Core Cannon Core Stripper [Rating: 206] Favorites ----------- Power Cooled Ion Engine Engine Cooled Ion Engine Power Core Micro Fission Core Reactor Quantum Reactor Propulsion Light Treads Treads Light Treads Leg Carbon-fiber Leg Wheel Armored Huge Wheel Hover Unit Gravmag System Flight Unit Flying Fortress v7 Utility High-capacity Storage Unit Device Improved Heat Sink Storage High-capacity Storage Unit Processor Core Analyzer Hackware Relay Coupler [NC] Protection Centrium Medium Armor Plating Weapon Advanced Beam Rifle Energy Gun Advanced Beam Rifle Energy Cannon Neutron Cannon Ballistic Gun Heavy Machine Gun Ballistic Cannon Light Cannon Launcher Heavy Missile Launcher Special Weapon Improved Remote Datajack Impact Weapon Core Stripper Slashing Weapon Power Sword Special Melee Weapon Improved Datajack Build | -11 -10 -10 -9 -9 -9 -8 -8 -8 -8 -8 -7 -7 -7 -7 -6 -6 -6 -6 -6 -5 -5 -5 -4 -4 -4 -3 -3 -3 -2 -2 -1 -1 -1 ------- Run | Yrd Mat Min Mat Min Exi Min Mat Gar Mat Gar Fac Gar Fac Gar Fac Ext Cet Arc Hub Fac Was Fac Fac Was Fac Res Qua Sec Res Tes Acc Com Ac0 Slots Evolved 18 | . . . 2 . . . 2 . . . 2 . . . 2 . . . . 2 . . 2 . . 2 . . 2 . 2 . . Power 2 | . . . . . . . . . . . . . . . . . . . . . . . . . . . . . 1 . 1 . . Propulsion 5 | . . . 1 . . . . . . . 1 . . . . . . . . 1 . . . . . . . . 1 . 1 . . Utility 10 | . . . . . . . 2 . . . 1 . . . 2 . . . . 1 . . 2 . . 2 . . . . . . . Weapon 1 | . . . 1 . . . . . . . . . . . . . . . . . . . . . . . . . . . . . . Parts Attached 299 | 7 13 . 28 2 5 . 20 2 23 3 15 15 11 12 20 16 6 4 26 15 . 4 10 2 3 2 5 2 5 6 1 16 . Power 32 | 1 2 . 5 . . . 1 . 1 . . 1 1 1 . 1 1 . 3 . . . 1 . . . 2 . 4 2 . 5 . Engine 14 | 1 2 . 5 . . . 1 . 1 . . 1 1 1 . 1 . . . . . . . . . . . . . . . . . Core 1 | . . . . . . . . . . . . . . . . . . . . . . . . . . . . . 1 . . . . Reactor 17 | . . . . . . . . . . . . . . . . . 1 . 3 . . . 1 . . . 2 . 3 2 . 5 . Propulsion 88 | 2 2 . 14 . 2 . 8 . 11 1 5 2 4 3 3 8 3 . 8 . . . . . . . . 2 1 . 1 8 . Treads 49 | . 2 . 13 . 2 . 8 . 10 1 1 2 3 . . 2 3 . 2 . . . . . . . . . . . . . . Leg 13 | 2 . . . . . . . . . . . . . . . 3 . . 3 . . . . . . . . . . . . 5 . Wheel 13 | . . . 1 . . . . . . . 3 . 1 1 3 3 . . 1 . . . . . . . . . . . . . . Hover 2 | . . . . . . . . . . . . . . 2 . . . . . . . . . . . . . . . . . . . Flight 11 | . . . . . . . . . 1 . 1 . . . . . . . 2 . . . . . . . . 2 1 . 1 3 . Utility 104 | 2 4 . 2 2 1 . 6 2 3 1 6 6 3 4 10 3 1 3 10 10 . 4 9 2 3 2 1 . . 1 . 3 . Device 55 | 1 2 . 1 2 . . 6 2 . . 1 2 1 2 5 1 . 3 6 7 . 2 4 2 1 . 1 . . 1 . 2 . Storage 6 | 1 2 . 1 . 1 . . . . . . . . . 1 . . . . . . . . . . . . . . . . . . Processor 9 | . . . . . . . . . . . 1 . . . 2 . . . 1 2 . . 2 . . 1 . . . . . . . Hackware 17 | . . . . . . . . . . . 3 1 2 1 1 . . . 2 1 . 2 1 . 1 1 . . . . . 1 . Protection 17 | . . . . . . . . . 3 1 1 3 . 1 1 2 1 . 1 . . . 2 . 1 . . . . . . . . Artifact . | . . . . . . . . . . . . . . . . . . . . . . . . . . . . . . . . . . Weapon 75 | 2 5 . 7 . 2 . 5 . 8 1 4 6 3 4 7 4 1 1 5 5 . . . . . . 2 . . 3 . . . Energy Gun 17 | . . . 3 . 2 . 3 . 3 . 1 . . 1 . . . 1 1 2 . . . . . . . . . . . . . Energy Cannon 13 | . 3 . 3 . . . . . . . . . . . 1 . . . 4 1 . . . . . . 1 . . . . . . Ballistic Gun 29 | 2 . . 1 . . . . . 5 . 1 6 2 3 5 3 1 . . . . . . . . . . . . . . . . Ballistic Cannon 3 | . 1 . . . . . . . . . . . 1 . . . . . . . . . . . . . . . . 1 . . . Launcher 3 | . . . . . . . . . . 1 1 . . . . . . . . . . . . . . . . . . 1 . . . Special Weapon 5 | . 1 . . . . . . . . . . . . . 1 1 . . . 1 . . . . . . . . . 1 . . . Impact Weapon 1 | . . . . . . . . . . . . . . . . . . . . . . . . . . . 1 . . . . . . Slashing Weapon 3 | . . . . . . . 2 . . . . . . . . . . . . 1 . . . . . . . . . . . . . Piercing Weapon . | . . . . . . . . . . . . . . . . . . . . . . . . . . . . . . . . . . Special Melee Weapon 1 | . . . . . . . . . . . 1 . . . . . . . . . . . . . . . . . . . . . . Unidentified Prototypes 38 | . 1 . 4 . . . . . 4 . 1 . 1 . 1 . 3 . 10 1 . . 1 . . . 5 2 1 2 . 1 . Parts Lost 70 | . . . 3 . . . . 2 4 2 1 9 . 8 3 5 . . 5 . . . . . . . . . . 2 . 23 3 Power 8 | . . . 1 . . . . . . . 1 1 . . . . . . . . . . . . . . . . . . . 5 . Propulsion 21 | . . . 1 . . . . . 1 1 . 2 . 2 1 3 . . . . . . . . . . . . . . . 8 2 Utility 23 | . . . . . . . . 2 1 1 . 3 . 2 1 2 . . 3 . . . . . . . . . . . . 7 1 Weapon 18 | . . . 1 . . . . . 2 . . 3 . 4 1 . . . 2 . . . . . . . . . . 2 . 3 . Highest Loss Streak 11 | . . . 1 . . . . 1 3 1 1 3 . 3 2 2 . . 2 . . . . . . . . . . 1 . 11 6 To Critical Strikes . | . . . . . . . . . . . . . . . . . . . . . . . . . . . . . . . . . . Average Backups 14 | 5 10 13 19 20 18 15 14 14 14 13 15 14 15 14 15 15 15 15 15 12 13 13 13 13 13 12 13 12 15 15 15 13 3 Power 1 | . 1 1 1 2 2 2 1 1 . 1 . . 1 1 1 1 2 2 2 3 3 3 2 2 2 2 1 . 2 2 1 1 1 Propulsion 3 | 2 2 2 4 4 3 3 5 6 5 4 4 5 3 2 3 2 2 2 2 . . . . 1 1 1 1 . . 1 1 1 . Utility 4 | . 3 4 6 8 6 5 2 2 3 2 4 2 3 3 4 4 4 5 6 5 6 6 6 7 7 6 5 4 3 4 5 4 . Weapon 4 | 1 3 5 6 6 5 5 5 5 5 5 3 4 6 5 5 5 5 4 4 4 4 3 3 3 3 3 3 3 3 3 3 3 2 Tool/Special . | . . . . . . . . . . . . . . . . . . . . . . . . . . . . . . . . . . Unused Backups 59 | 1 2 . 4 1 3 1 4 . 4 2 5 2 1 3 3 1 1 1 5 2 . . . 1 3 . 4 3 . 1 . 1 . Power 7 | . 1 . 1 . . . 1 . . . . . . . . 1 1 . 1 1 . . . . . . . . . . . . . Propulsion 10 | . . . . . . . . . 1 2 2 . 1 . 1 . . . 2 . . . . . . . 1 . . . . . . Utility 20 | . . . . . 2 1 2 . 1 . 3 1 . 1 1 . . 1 . 1 . . . 1 2 . 2 1 . . . . . Weapon 16 | 1 1 . 2 1 1 . 1 . 2 . . 1 . 2 1 . . . 2 . . . . . 1 . . . . . . . . Tool/Special 6 | . . . 1 . . . . . . . . . . . . . . . . . . . . . . . 1 2 . 1 . 1 . Average Slot Usage (%) 90 | . 99 100 93 100 100 100 99 99 93 89 82 88 92 87 91 93 83 85 86 66 82 81 83 83 83 84 84 84 83 83 78 76 23 Engine 6 | . 14 14 11 11 11 11 9 9 9 9 7 7 7 7 6 6 5 . . . . . . . . . . . . . . . . Reactor 1 | . . . . . . . . . . . . . . . . . . 6 6 5 5 5 5 5 5 4 4 4 7 8 8 9 . Treads 16 | . 24 28 32 33 33 33 27 27 26 26 15 14 15 6 . 2 13 13 14 . . . . . . . . . . . . . . Wheel 2 | . . . . . . . . . . . 8 7 7 7 15 16 1 . . . . . . . . . . . . . . . . Flight 2 | . . . . . . . . . . . . . . . . . . . . 11 11 11 10 10 10 9 9 9 10 12 10 12 2 Device 13 | . 14 14 11 11 11 11 26 26 15 9 3 5 2 10 14 10 17 19 13 9 11 10 13 9 10 14 14 13 15 15 10 13 4 Storage 7 | . 14 14 11 11 11 11 9 9 9 9 7 7 7 7 6 6 6 6 6 5 5 5 5 5 5 4 4 4 4 4 3 2 . Processor 3 | . . . . . . . . . . . 6 . . . 6 6 6 6 11 2 5 5 5 5 5 9 9 9 8 8 7 7 7 Hackware 8 | . . . . . . . . . . . 7 14 15 11 8 13 8 6 7 22 23 23 21 21 21 22 23 23 20 20 19 17 7 Protection 4 | . . . . . . . . . 6 9 6 8 12 6 7 6 6 6 5 3 . . 6 10 9 4 3 4 1 4 6 4 . Energy Gun 7 | . . . 10 22 26 33 26 27 8 . 5 2 . 2 . . . 2 4 . . . . . . . . . . . . . . Energy Cannon 2 | . 11 14 9 . . . . . . . . . . . 1 . . . . 1 5 4 . . . . 3 3 4 4 3 2 . Ballistic Gun 7 | . 4 . . . . . . . 18 23 3 12 19 18 16 18 14 17 11 . . . 5 5 5 4 . . . . . . . Ballistic Cannon 1 | . 11 14 6 11 6 . . . . . . . . . . . . . . . . . . . . . . . . . . . . Special Weapon 1 | . . . . . . . . . . . . . . . . 1 1 . . . 5 5 5 5 5 4 3 3 4 3 2 1 . Slashing Weapon 1 | . . . . . . . . . . 3 5 5 3 1 . . . . . . 5 5 5 5 5 4 4 2 . . . . . Peak Build Rating 206 | 8 14 14 22 23 31 31 40 40 40 38 58 59 54 51 63 61 103 106 119 108 105 110 129 132 131 140 165 167 184 200 206 205 63 Average Rating 66 | 4 11 14 19 22 25 30 37 39 35 36 52 52 49 48 57 55 87 102 101 91 105 104 125 129 128 139 144 153 174 181 193 179 48 On Entrance 79 | . 7 14 14 22 23 31 31 40 38 37 38 56 49 51 51 60 53 103 106 88 105 105 110 129 130 127 140 149 158 184 189 195 63 Naked Turns . | . . . . . . . . . . . . . . . . . . . . . . . . . . . . . . . . . . Heaviest Build 98 | 13 35 35 60 56 56 55 62 62 73 76 78 82 79 75 79 74 85 86 98 55 55 60 63 76 63 58 66 70 77 85 88 97 . Greatest Support 160 | 20 40 40 60 60 60 60 63 63 68 68 68 28 28 28 60 54 160 160 160 57 57 67 69 67 67 67 77 80 86 86 93 110 6 Greatest Overweight (x) 9 | 1 . . 2 . . . . . 1 1 4 2 2 2 2 7 3 . 9 . . 1 . 1 . . . . . 1 . 3 . Average Overweight (x) . | . . . . . . . . . . . 2 2 2 2 1 1 . . . . . . . . . . . . . . . . . Largest Inventory Capacity 20 | 8 15 15 20 20 20 20 20 20 20 20 20 20 20 20 20 20 20 20 20 15 15 15 15 15 15 15 15 19 19 19 19 19 9 Average Capacity 18 | 7 12 15 19 20 20 20 20 20 20 19 20 20 20 20 20 20 20 20 19 15 15 15 15 15 15 15 15 15 19 19 19 17 9 Most Carried 20 | 8 14 13 20 20 20 20 20 20 20 20 20 20 20 20 20 20 20 20 20 15 15 15 15 15 15 14 15 19 19 19 19 19 5 Average Carried 18 | 5 10 13 19 19 19 19 19 19 19 18 19 19 19 19 19 19 19 19 19 14 15 14 14 14 14 13 14 15 18 18 18 15 4 Final Capacity 20 | 8 15 15 20 20 20 20 20 20 20 20 20 20 20 20 20 20 20 20 15 15 15 15 15 15 15 15 15 19 19 19 19 19 9 Final Carried 20 | 7 13 13 20 20 20 20 20 20 20 19 20 20 20 20 20 20 20 20 15 15 15 15 15 15 15 13 15 19 19 19 18 18 5 Class Distribution -------------------- 16% | Mutant 16% | Skirmisher 15% | Scavenger-Tank 12% | Scavenger-Gunner 12% | Hacker-Mutant 8% | Hacker-Scout 7% | Scavenger-Skirmisher 3% | Scavenger-Mutant Dominant Class ---------------- Mutant | -10/Materials Mutant | -10/Mines Scavenger-Gunner | -9/Materials Scavenger-Gunner | -9/Mines Scavenger-Gunner | -9/Exiles Scavenger-Skirmisher | -8/Mines Skirmisher | -8/Materials Skirmisher | -8/Garrison Skirmisher | -8/Materials Skirmisher | -8/Garrison Mutant | -7/Factory Mutant | -7/Garrison Scavenger-Tank | -7/Factory Scavenger-Tank | -7/Garrison Scavenger-Tank | -6/Factory Scavenger-Tank | -6/Extension Commander-Tank | -6/Cetus Scavenger-Tank | -6/Archives Scavenger-Tank | -6/Hub_04(d) Hacker-Mutant | -5/Factory Hacker-Mutant | -5/Waste Hacker-Mutant | -5/Factory Hacker-Mutant | -4/Factory Hacker-Mutant | -4/Waste Hacker-Mutant | -4/Factory Hacker-Scout | -3/Research Hacker-Scout | -3/Quarantine Hacker-Scout | -3/Section 7 Hacker-Scout | -2/Research Hacker-Scout | -2/Testing Hacker-Scout | -1/Access Hacker-Scout | -1/Command Hacker-Mutant | -1/Access_0 Resources | -11 -10 -10 -9 -9 -9 -8 -8 -8 -8 -8 -7 -7 -7 -7 -6 -6 -6 -6 -6 -5 -5 -5 -4 -4 -4 -3 -3 -3 -2 -2 -1 -1 -1 ----------- Run | Yrd Mat Min Mat Min Exi Min Mat Gar Mat Gar Fac Gar Fac Gar Fac Ext Cet Arc Hub Fac Was Fac Fac Was Fac Res Qua Sec Res Tes Acc Com Ac0 Matter Collected 10714 | 286 313 12 475 70 . 47 243 30 600 483 328 480 628 781 1008 1052 215 247 1395 152 . 254 167 204 67 . 151 140 126 42 183 535 . Remotely 54 | . . . . . . . . . . . . . . . . . . . . 54 . . . . . . . . . . . . . Salvage Created 17582 | 120 605 39 1770 330 . 322 1626 680 1664 561 897 758 634 788 1279 765 22 381 2200 78 . 213 167 131 151 . 382 140 65 51 183 580 . Parts 811 | 13 30 6 98 8 . 16 58 19 71 38 55 34 37 46 38 29 2 30 103 7 . 6 5 7 6 . 9 5 7 4 6 18 . Haulers Intercepted 18 | . 2 . 6 . . . 4 . 4 . . . . . . . . . 1 . . . 1 . . . . . . . . . . Recyclers Shooed 27 | . . 1 4 1 . 1 3 . 3 . . . 1 . 8 1 . . . . . . . . . . . 1 . 1 2 . . Parts Field Recycled . | . . . . . . . . . . . . . . . . . . . . . . . . . . . . . . . . . . Retrieved Matter . | . . . . . . . . . . . . . . . . . . . . . . . . . . . . . . . . . . Parts Self-Destructed . | . . . . . . . . . . . . . . . . . . . . . . . . . . . . . . . . . . Prevented . | . . . . . . . . . . . . . . . . . . . . . . . . . . . . . . . . . . Kills | -11 -10 -10 -9 -9 -9 -8 -8 -8 -8 -8 -7 -7 -7 -7 -6 -6 -6 -6 -6 -5 -5 -5 -4 -4 -4 -3 -3 -3 -2 -2 -1 -1 -1 ------- Run | Yrd Mat Min Mat Min Exi Min Mat Gar Mat Gar Fac Gar Fac Gar Fac Ext Cet Arc Hub Fac Was Fac Fac Was Fac Res Qua Sec Res Tes Acc Com Ac0 Combat Hostiles Destroyed 269 | . 11 3 31 5 . 3 26 14 26 18 17 20 10 22 7 12 . . 27 4 . . 1 . . . 1 . . 1 1 9 . Melee 7 | . . . . . . . . 1 . . . 3 2 . . . . . . . . . 1 . . . . . . . . . . Guns 167 | . . . 5 5 . 3 24 12 26 10 9 14 7 16 7 12 . . 17 . . . . . . . . . . . . . . Cannons 50 | . 10 3 26 . . . . . . . . . . . . . . . 5 . . . . . . . 1 . . 1 1 3 . AOE 36 | . . . . . . . . . . 8 8 3 1 6 . . . . 4 4 . . . . . . . . . . . 2 . Classes Destroyed 21 | 2 4 . 5 2 . . 1 1 . 2 1 . . . . 1 . . 2 . . . . . . . . . . . . . . Worker 41 | . . . 3 . . 1 3 . 4 . 3 . 7 . 1 1 . . 8 2 . 1 . . . . . 2 4 . 1 . . Builder 7 | . . . 1 . . . . . . . 3 . . . . 2 . . . . . . . . . . . . . 1 . . . Tunneler 9 | 3 . . . 1 . . . . . . . . 1 . 1 . . . 2 . . 1 . . . . . . . . . . . Hauler 18 | . 2 . 6 . . . 4 . 4 . . . . . . . . . 1 . . . 1 . . . . . . . . . . Recycler 38 | 1 2 . 2 4 . 3 3 . 3 . 2 . 2 . 7 . . . 2 . . 1 . . 1 . 2 1 . . 1 1 . Mechanic 1 | . . . . . . . . . . . 1 . . . . . . . . . . . . . . . . . . . . . . Operator 18 | . . . . . . . 1 . 1 . 2 . 2 . 2 . . 9 . . . . . . 1 . . . . . . . . Watcher 23 | . 3 . 5 . . . 4 . 2 . . . . . . 1 1 . 4 1 . . . . . . 2 . . . . . . Swarmer 58 | . 3 3 6 . . . 7 . 6 4 7 6 3 7 . . . . . 4 . . . . . . . . . . . 2 . Cutter 1 | . . . . . . . . . . 1 . . . . . . . . . . . . . . . . . . . . . . . Grunt 106 | . 8 . 13 . . 2 11 11 14 4 6 5 4 6 5 8 . . 6 . . . . . . . 1 . . . 1 1 . Brawler 1 | . . . 1 . . . . . . . . . . . . . . . . . . . . . . . . . . . . . . Duelist 5 | . . . 1 . . 1 . . . . . 2 . 1 . . . . . . . . . . . . . . . . . . . Protector 2 | . . . . . . . . . . . . . . . . . . . 2 . . . . . . . . . . . . . . Sentry 40 | . . . 10 . . . 8 1 6 4 1 2 . 2 . 1 . . 5 . . . . . . . . . . . . . . Demolisher 2 | . . . . 2 . . . . . . . . . . . . . . . . . . . . . . . . . . . . . Hunter 17 | . . . . . . . . 2 . 2 1 5 1 . . . . . 5 . . . . . . . . . . . . 1 . Programmer 23 | . . . . . . . . . . 3 2 . 2 6 2 1 . . 3 . . . 1 . . . . . . 1 . 2 . Heavy 1 | . . . . . . . . . . . . . . . . . . . 1 . . . . . . . . . . . . . . Behemoth 3 | . . . . . . . . . . . . . . . . 2 . . 1 . . . . . . . . . . . . . . Lightning 4 | . . . . . . . . . . . . . . . . . . . 4 . . . . . . . . . . . . . . Combat Programmer 2 | . . . . . . . . . . . . . . . . . . . . . . . . . . . . . . . . 2 . Assembled 3 | . . . . 3 . . . . . . . . . . . . . . . . . . . . . . . . . . . . . Thug 1 | . . . . . . . . . . . . . . . . . . 1 . . . . . . . . . . . . . . . Martyr 2 | . . . . . . . . . . . . . . . . . . . . . . . . 2 . . . . . . . . . Wizard 1 | . . . . . . . . . . . . . . . . . . . . . . . . . . . . . . . . 1 . Best Kill Streak 11 | 3 3 3 9 2 . 4 7 4 10 7 10 8 9 6 4 5 1 4 11 6 . 2 1 . 1 . 2 1 2 2 1 4 . Combat Bots Only 8 | . 3 3 6 2 . 2 4 4 8 7 5 8 4 6 3 3 . . 4 4 . . 1 . . . 1 . . 1 1 4 . Max Kills in Single Turn 6 | 1 1 1 2 1 . 1 2 1 2 2 4 3 2 3 2 2 1 2 6 3 . 1 1 1 1 . 1 1 1 1 1 2 . Gunslinging 1 | . . . . . . . . . 1 . . . . . . . . . 1 . . . . . . . . . . . . . . Exploded 3 | . . . . . . . . . . 2 2 3 1 3 . . . . 1 2 . . . . . . . . . . . 1 . Melee 1 | . . . . . . . . 1 . . . 1 1 . . . . . . . . . 1 . . . . . . . . . . Uniques/NPCs Destroyed . | . . . . . . . . . . . . . . . . . . . . . . . . . . . . . . . . . . Combat | -11 -10 -10 -9 -9 -9 -8 -8 -8 -8 -8 -7 -7 -7 -7 -6 -6 -6 -6 -6 -5 -5 -5 -4 -4 -4 -3 -3 -3 -2 -2 -1 -1 -1 -------- Run | Yrd Mat Min Mat Min Exi Min Mat Gar Mat Gar Fac Gar Fac Gar Fac Ext Cet Arc Hub Fac Was Fac Fac Was Fac Res Qua Sec Res Tes Acc Com Ac0 Hostile Shots Fired 1972 | . 55 13 140 11 . 13 90 51 102 93 87 200 87 163 57 104 . . 239 6 . 8 33 . 2 2 24 25 14 27 16 257 53 Missed 611 | . 22 5 32 2 . 3 25 12 24 27 29 53 18 53 18 29 . . 75 5 . 7 14 . . 2 8 14 6 10 6 87 25 Hits 1361 | . 33 8 108 9 . 10 65 39 78 66 58 147 69 110 39 75 . . 164 1 . 1 19 . 2 . 16 11 8 17 10 170 28 Melee 8 | . . . 2 . . . . . . . . . . . 1 . . . . . . . . . . . . . . . . . 5 Projectile 1353 | . 33 8 106 9 . 10 65 39 78 66 58 147 69 110 38 75 . . 164 1 . 1 19 . 2 . 16 11 8 17 10 170 23 AOE 21 | . . . . 8 . . . . . 3 . . . . 2 . . . 1 . . . . . . . . . . . . 7 . Critical Strikes 58 | . . . 4 . . . 2 1 2 3 2 . 5 6 2 3 . . 11 . . . 2 . . . 1 1 1 . . 10 2 Actively Blocked 3 | . . . . . . . . . . . . . . . . . . . . . . . 2 . . . . . . . . 1 . Part Disruptions 6 | . . . . . . . . . . . . . . . . . . . . . . . . . . . . . . . . 6 . Damage Taken 22900 | . 358 65 1390 340 . 182 655 492 981 1055 842 1562 831 1316 731 958 30 . 3324 15 . 25 388 . 84 . 326 230 181 409 243 4953 934 Core 3157 | . 35 8 218 56 . . 124 50 105 40 41 142 102 131 36 147 . . 321 . . . . . 41 . . . 23 22 25 721 769 Absorbed by Shields 1444 | . . . . . . . 234 127 86 . . . 236 104 235 330 . . 92 . . . . . . . . . . . . . . Reduced by Siege Mode 26 | . . . . . . . . . . . . . . . . . . . 26 . . . . . . . . . . . . . . Redirected to Shielding 431 | . . . . . . . . . . . . . . . . . . . . . . . 75 . . . . 18 . 19 70 249 . Regen/Repaired (Parts) 2091 | . 74 . . . . . 49 . 95 . 111 . . . 72 . . . . . . . . . 83 . . . . . 1607 . . Core Remaining (%) 71 | 100 . 82 . . . 31 . . . 42 . . . 40 . . . . 40 . . 100 . . 96 . . 92 . 96 . . . Volleys Fired 1073 | 8 64 10 102 22 . 18 79 52 80 33 4 15 33 55 63 71 2 40 92 12 . 8 1 . 1 . 26 24 41 30 43 44 . Largest 3 | 2 2 2 3 2 . 3 3 3 3 3 1 3 3 3 3 3 3 3 3 1 . 1 1 . 1 . 1 1 1 1 1 1 . Hottest 340 | 40 100 98 159 122 . 183 185 185 185 69 39 84 84 84 90 90 93 146 340 90 . 90 7 . 7 . 90 300 90 90 90 300 . Shots Fired 2203 | 16 118 17 206 44 . 38 234 118 230 80 52 68 77 127 141 159 6 46 196 12 . 8 2 . 1 . 26 24 41 30 43 43 . Gun 1595 | 16 16 . 38 44 . 38 234 118 230 71 48 66 75 124 134 140 6 46 150 . . . 1 . . . . . . . . . . Cannon 537 | . 99 17 168 . . . . . . . . . . . 6 . . . 39 9 . 3 . . . . 23 20 41 29 43 40 . Launcher 30 | . . . . . . . . . . 9 4 2 2 3 . . . . 4 3 . . . . . . . . . . . 3 . Special 41 | . 3 . . . . . . . . . . . . . 1 19 . . 3 . . 5 1 . 1 . 3 4 . 1 . . . Kinetic 961 | 16 62 10 25 . . . . . 103 71 . 33 75 120 134 140 6 43 122 . . . 1 . . . . . . . . . . Thermal 1159 | . 56 7 181 44 . 38 234 118 127 . 48 33 . . 6 . . 3 57 8 . 3 . . . . 23 20 41 29 43 40 . Explosive 30 | . . . . . . . . . . 9 4 2 2 3 . . . . 4 3 . . . . . . . . . . . 3 . Electromagnetic 15 | . . . . . . . . . . . . . . 4 . . . . 10 1 . . . . . . . . . . . . . Robot Hit Streak 33 | 5 7 5 8 13 . 8 33 23 17 12 14 11 7 8 10 12 9 10 18 4 . 6 1 . 2 . 4 5 3 7 9 9 . Robot Miss Streak 15 | 2 6 3 5 2 . 2 5 2 5 3 2 4 15 5 3 4 4 6 5 . . 2 1 . . . 1 2 2 2 2 4 . Penetration Max 1 | . . . . . . . . . . . . . 1 1 . . . 1 1 . . . . . . . . . . . . . . Secondary Targets 24 | . . . . 2 . . 2 1 6 2 . . 2 4 1 1 . . 3 . . . . . . . . . . . . . . Max Gunslinging Chain 1 | . . . . 1 . . 1 1 1 1 . . 1 1 1 1 . . 1 . . . . . . . . . . . . . . Autonomous 82 | . . . . . . . . . . . 48 34 . . . . . . . . . . . . . . . . . . . . . Shots Hit Robots 1382 | 10 61 7 109 29 . 21 144 74 135 52 57 65 75 79 84 105 5 20 126 2 . 10 13 6 3 . 18 13 13 12 21 13 . Core Hits 728 | 8 20 2 51 10 . 12 57 25 64 33 36 48 61 54 35 38 5 18 82 7 . 3 3 2 1 . 9 2 4 2 5 31 . Critical Kills 12 | . 1 . . . . . . . 1 . . . . . 1 1 . 4 2 . . . . . . . . . . . . 2 . Critical Parts Destroyed 15 | . . . . . . . . . 2 . . . . 2 . 1 1 3 5 . . . . . . . . . . . . 1 . Critical Strikes 81 | . 3 . 2 5 . 1 20 3 12 . . 3 2 2 1 2 1 7 7 . . 1 3 1 . . 2 . . . . 3 . Burn 40 | . . . 2 5 . 1 20 3 9 . . . . . . . . . . . . . . . . . . . . . . . . Meltdown 1 | . 1 . . . . . . . . . . . . . . . . . . . . . . . . . . . . . . . . Destroy 26 | . . . . . . . . . 3 . . . . 2 1 2 1 7 7 . . . . . . . . . . . . 3 . Blast 2 | . 2 . . . . . . . . . . . . . . . . . . . . . . . . . . . . . . . . Sever 12 | . . . . . . . . . . . . 3 2 . . . . . . . . 1 3 1 . . 2 . . . . . . Melee Attacks 309 | . . . . . . . 5 . 1 11 43 40 39 2 . . . . . . . 16 48 6 30 2 45 21 . . . . . Impact . | . . . . . . . . . . . . . . . . . . . . . . . . . . . . . . . . . . Slashing 302 | . . . . . . . 5 . 1 11 37 39 39 2 . . . . . . . 16 48 6 30 2 45 21 . . . . . Piercing . | . . . . . . . . . . . . . . . . . . . . . . . . . . . . . . . . . . Sneak Attacks 33 | . . . . . . . . . . . 8 . 7 . . . . . . . . 4 3 6 1 . 2 2 . . . . . Combat Hostiles . | . . . . . . . . . . . . . . . . . . . . . . . . . . . . . . . . . . Follow-up Attacks . | . . . . . . . . . . . . . . . . . . . . . . . . . . . . . . . . . . Damage Inflicted 41680 | 81 1048 153 2684 608 . 516 3094 1527 2608 1473 2761 2084 2089 2326 2048 2234 112 729 5074 466 . 473 675 501 135 . 801 449 487 527 869 3048 . Guns 22405 | 81 95 . 399 600 . 440 3035 1524 2527 757 1211 1316 999 1887 2048 2234 112 729 2411 . . . . . . . . . . . . . . Cannons 7472 | . 931 152 2196 . . . . . . . . . . . . . . . 1051 82 . . . . . . 73 108 487 527 814 1051 . Explosions 6648 | . . . . . . 44 . . . 712 953 346 154 439 . . . . 1564 384 . . . . . . . . . . 55 1997 . Melee 4808 | . . . . . . . . . . . 597 422 936 . . . . . . . . 473 675 501 135 . 728 341 . . . . . Ramming 347 | . 22 1 89 8 . 32 59 3 81 4 . . . . . . . . 48 . . . . . . . . . . . . . . Kinetic 13479 | 81 613 41 378 . . . . . 1045 757 . 550 999 1887 2048 2234 112 729 2005 . . . . . . . . . . . . . . Thermal 17390 | . 413 111 2217 600 . 484 3035 1524 1482 . 1211 766 . . . . . . 1504 . . . . . . . 73 108 487 527 869 1979 . Explosive 4295 | . . . . . . . . . . 712 864 346 154 439 . . . . 327 384 . . . . . . . . . . . 1069 . Electromagnetic 1361 | . . . . . . . . . . . 89 . . . . . . . 1190 82 . . . . . . . . . . . . . Impact . | . . . . . . . . . . . . . . . . . . . . . . . . . . . . . . . . . . Slashing 4808 | . . . . . . . . . . . 597 422 936 . . . . . . . . 473 675 501 135 . 728 341 . . . . . Piercing . | . . . . . . . . . . . . . . . . . . . . . . . . . . . . . . . . . . Highest Corruption 26 | . . . . . . . . . . 5 1 1 5 9 8 9 9 9 26 3 13 13 2 . . . . . . 4 . 14 14 Average Corruption 7 | . . . . . . . . . . 4 1 1 2 6 5 8 9 6 16 3 10 13 1 . . . . . . 3 . 7 14 Corruption Purged 12 | . . . . . . . . . . . . 1 . . . . . 9 . . . . 2 . . . . . . . . . . Corruption Blocked . | . . . . . . . . . . . . . . . . . . . . . . . . . . . . . . . . . . Effects 291 | . . . . . . . . . . 18 3 1 11 23 21 48 22 7 73 10 2 18 11 . . . . . . 5 . 14 4 Message Errors 80 | . . . . . . . . . . 4 1 . 3 4 7 12 7 . 24 3 1 8 2 . . . . . . 1 . 2 1 Matter Fused 73 | . . . . . . . . . . 1 1 1 5 8 4 13 4 5 19 2 . 3 2 . . . . . . 1 . 4 . Heat Flow Errors 27 | . . . . . . . . . . 2 1 . . 4 2 4 2 . 3 2 1 2 1 . . . . . . 1 . 1 1 Energy Discharges 31 | . . . . . . . . . . 3 . . . . 1 6 4 1 7 1 . 2 4 . . . . . . 2 . . . Parts Rejected 5 | . . . . . . . . . . 1 . . 1 1 1 . . . . . . . . . . . . . . . . 1 . Parts Fused 3 | . . . . . . . . . . 2 . . . . . . . . . . . . . . . . . . . . . . 1 Data Loss (minor) 37 | . . . . . . . . . . 3 . . 1 3 2 7 4 1 10 1 . 1 1 . . . . . . . . 3 . Data Loss (major) 11 | . . . . . . . . . . 1 . . . . 1 3 1 . 3 1 . 1 . . . . . . . . . . . Misfires 6 | . . . . . . . . . . . . . . 1 . 2 . . 2 . . . 1 . . . . . . . . . . Alerts 4 | . . . . . . . . . . 1 . . 1 1 . . . . 1 . . . . . . . . . . . . . . Misdirections 5 | . . . . . . . . . . . . . . . . . . . 1 . . 1 . . . . . . . . . 2 1 Weapon Failures 9 | . . . . . . . . . . . . . . 1 3 1 . . 3 . . . . . . . . . . . . 1 . Overload Shots . | . . . . . . . . . . . . . . . . . . . . . . . . . . . . . . . . . . Overflow Damage 1704 | . 9 23 1 . . . . . . 3 251 11 128 47 . . . . 205 37 . 3 176 71 50 . 36 87 33 140 98 295 . Projectiles 534 | . 9 23 1 . . . . . . . . . . . . . . . 37 32 . . . . . . . . 33 140 74 185 . Explosions 439 | . . . . . . . . . . 3 82 . . 47 . . . . 168 5 . . . . . . . . . . 24 110 . Melee 731 | . . . . . . . . . . . 169 11 128 . . . . . . . . 3 176 71 50 . 36 87 . . . . . Knockbacks 9 | . 5 . 3 . . . . . 1 . . . . . . . . . . . . . . . . . . . . . . . . Impact 3 | . . . 2 . . . . . 1 . . . . . . . . . . . . . . . . . . . . . . . . Kinetic 6 | . 5 . 1 . . . . . . . . . . . . . . . . . . . . . . . . . . . . . . Secondary . | . . . . . . . . . . . . . . . . . . . . . . . . . . . . . . . . . . Self-Inflicted Damage 765 | . . . . . . 29 . . . 178 88 6 . . . . . . 197 . . . . . . . . . . . 10 257 . Shots 26 | . . . . . . 2 . . . 5 2 1 . . . . . . 2 . . . . . . . . . . . 1 13 . Rammed 42 | . 5 1 7 2 . 5 5 . 8 1 . . . . 1 . . . 7 . . . . . . . . . . . . . . Targets Rammed 52 | . 8 1 7 3 . 6 6 1 10 1 . . . . 1 . . . 8 . . . . . . . . . . . . . . Kicked 2 | . 2 . . . . . . . . . . . . . . . . . . . . . . . . . . . . . . . . Crushed 8 | . 1 . . 1 . 1 1 1 2 . . . . . . . . . 1 . . . . . . . . . . . . . . Highest Temperature 351 | . 281 . 240 48 . 258 139 98 87 156 88 24 280 250 154 228 229 58 351 255 243 253 181 . . . . 202 23 157 174 282 61 Average Temperature 51 | . 25 . 62 21 . 111 29 29 20 75 49 9 81 66 40 54 108 23 122 67 138 81 100 . . . . 103 4 20 40 75 61 Received Heat Transfer 4067 | . 135 . 444 40 . 90 240 238 438 135 138 318 242 300 192 322 . . 151 . . . 42 . . . 69 58 54 9 45 367 . Effects 1 | . . . . . . . . . . . . . . . . . . . 1 . . . . . . . . . . . . . . Matter Decay 1 | . . . . . . . . . . . . . . . . . . . 1 . . . . . . . . . . . . . . Siege Activations 6 | . . . . . . . . . . . . . . . . . . . 6 . . . . . . . . . . . . . . Total Turns 59 | . . . . . . . . . . . . . . . . . . . 59 . . . . . . . . . . . . . . Longest Duration 20 | . . . . . . . . . . . . . . . . . . . 20 . . . . . . . . . . . . . . Martial Activations . | . . . . . . . . . . . . . . . . . . . . . . . . . . . . . . . . . . Shielding Activations . | . . . . . . . . . . . . . . . . . . . . . . . . . . . . . . . . . . Robots Disrupted . | . . . . . . . . . . . . . . . . . . . . . . . . . . . . . . . . . . Combat Hostiles . | . . . . . . . . . . . . . . . . . . . . . . . . . . . . . . . . . . Robots Corrupted 3 | . . . . . . . . . . . . . . . . . . . 2 1 . . . . . . . . . . . . . Combat Hostiles . | . . . . . . . . . . . . . . . . . . . . . . . . . . . . . . . . . . Parts Fried 7 | . . . . . . . . . . . . . . . . . . . 6 1 . . . . . . . . . . . . . Impact Corruptions . | . . . . . . . . . . . . . . . . . . . . . . . . . . . . . . . . . . Robots Melted 9 | . 1 . . . . . 2 1 . . . . . . . . . . 1 . . . . . . . . . . . . 4 . Combat Hostiles 9 | . 1 . . . . . 2 1 . . . . . . . . . . 1 . . . . . . . . . . . . 4 . Parts Melted 65 | . . . 5 . . 2 24 5 6 . 6 2 . . . . . . 10 . . . . . . . . . . . . 5 . Heat Transferred 29813 | . 777 185 4070 1480 . 938 6993 2960 3441 . 1443 962 . . . . . . 2434 . . . . . . . . . . . 50 4080 . Parts Sabotaged . | . . . . . . . . . . . . . . . . . . . . . . . . . . . . . . . . . . Parts Stolen . | . . . . . . . . . . . . . . . . . . . . . . . . . . . . . . . . . . Parts Stripped . | . . . . . . . . . . . . . . . . . . . . . . . . . . . . . . . . . . Power Chain Reactions 2 | . . . . . . . . . . . . . . . . . . . 1 . . . . . . . . . . . 1 . . Alert | -11 -10 -10 -9 -9 -9 -8 -8 -8 -8 -8 -7 -7 -7 -7 -6 -6 -6 -6 -6 -5 -5 -5 -4 -4 -4 -3 -3 -3 -2 -2 -1 -1 -1 ------- Run | Yrd Mat Min Mat Min Exi Min Mat Gar Mat Gar Fac Gar Fac Gar Fac Ext Cet Arc Hub Fac Was Fac Fac Was Fac Res Qua Sec Res Tes Acc Com Ac0 Maximum Alert Level 3 | . . . 1 . . . 1 2 2 2 2 3 2 2 1 . . . 3 2 . . . . . . . . . . . 1 . Low Security (%) 58 | 100 100 100 56 100 . 100 53 17 7 19 . . . . 36 100 100 100 44 32 100 100 100 100 100 100 100 100 100 100 100 70 . Level 1 25 | . . . 43 . . . 46 38 46 18 91 10 67 22 63 . . . 25 48 . . . . . . . . . . . 29 . Level 2 13 | . . . . . . . . 44 45 62 8 29 32 77 . . . . 19 18 . . . . . . . . . . . . . Level 3 2 | . . . . . . . . . . . . 60 . . . . . . 10 . . . . . . . . . . . . . . Level 4 . | . . . . . . . . . . . . . . . . . . . . . . . . . . . . . . . . . . Level 5 . | . . . . . . . . . . . . . . . . . . . . . . . . . . . . . . . . . . High Security . | . . . . . . . . . . . . . . . . . . . . . . . . . . . . . . . . . . Max Security . | . . . . . . . . . . . . . . . . . . . . . . . . . . . . . . . . . . Peak Influence 957 | 10 119 70 264 88 . 89 304 635 529 668 508 957 501 677 354 65 92 90 778 456 47 53 55 . 199 85 30 30 33 66 46 259 . Initial 501 | . . . 22 88 . . . 100 309 112 350 347 501 238 354 65 11 2 . 366 47 11 11 . . 78 10 . 4 2 1 1 . Average 191 | 1 29 51 158 10 . 18 161 372 371 399 305 694 369 529 222 24 24 36 290 265 32 12 12 . 120 60 6 4 7 35 13 166 . Influence Increases 13238 | 20 431 98 1053 75 . 229 902 555 868 616 674 840 483 519 226 433 265 261 1846 255 . 192 270 . 648 11 237 182 164 167 125 581 12 Destroy 0b10 Robot/C 5740 | . 220 60 620 40 . 60 520 280 540 380 340 500 200 330 105 270 120 60 585 60 . 30 15 . 240 . 15 . . 15 15 120 . Destroy 0b10 Robot/NC 737 | 20 35 . 85 25 . 20 75 . 70 . 55 . 60 . 44 16 4 36 84 12 . 12 4 . 20 . 16 12 16 4 8 4 . Destroy Leader 1110 | . 60 10 182 10 . 10 146 30 142 10 80 40 50 32 24 26 . . 170 10 . . 10 . 40 . 4 . . 8 . 16 . Allied During Kill 749 | . . . . . . . . . 2 3 5 32 . . . 57 124 96 287 . . . . . 143 . . . . . . . . Successful Hack 850 | . 22 . 43 . . . 59 7 3 14 31 14 41 11 15 33 . . 45 77 . 70 67 . 47 7 82 44 40 68 . 10 . Select Force Hacks 120 | . 60 . 60 . . . . . . . . . . . . . . . . . . . . . . . . . . . . . . Disable Machine 1080 | . 15 15 30 . . 105 30 30 . 45 75 . 75 . . 24 12 60 276 12 . 12 . . 48 . 60 60 12 36 24 24 . Anti-Garrison Action 476 | . . . . . . . . 150 . 100 . 150 . 38 . . . . . . . . . . . . . . . . . 38 . Destroy Structure 1614 | . 4 13 3 . . 34 12 58 6 64 88 59 42 60 2 7 5 9 363 48 . 20 66 . 50 4 60 54 72 36 42 333 . Partial Spotted 108 | . . . . . . . . . . . . . . . . . . . . 12 . . 24 . 12 . . . 12 . 12 24 12 Lose Combat Pursuer 654 | . 15 . 30 . . . 60 . 105 . . 45 15 48 36 . . . 36 24 . 48 84 . 48 . . 12 12 . 24 12 . Influence Decreases 13238 | 20 431 40 882 304 . 229 748 74 1330 121 846 379 1100 182 769 546 281 266 1098 868 118 185 294 . 498 142 256 174 168 168 125 485 111 Entered New Map 2727 | . . . 36 141 . . . 54 326 61 318 149 456 102 323 69 10 3 . 382 88 6 13 . . 72 9 . 4 2 2 2 99 Time Decay 7693 | 20 431 40 666 163 . 229 598 . 624 . 478 . 494 . 416 407 188 186 588 286 20 149 281 . 290 30 247 174 164 146 123 253 2 Lost Part 680 | . . . 30 . . . . 20 40 20 10 90 . 80 30 50 . . 50 . . . . . . . . . . 20 . 230 10 Lost Ally 938 | . . . . . . . . . 40 40 40 140 . . . 20 83 77 160 50 10 30 . . 208 40 . . . . . . . Purge Threat 1200 | . . . 150 . . . 150 . 300 . . . 150 . . . . . 300 150 . . . . . . . . . . . . . Squads Dispatched 69 | . 2 . 2 . . . 1 . 4 . 8 . 5 . 3 2 . . 8 4 . 4 6 . 4 . 2 4 3 3 . 4 . Investigation 17 | . 2 . 2 . . . 1 . 1 . 1 . 1 . 1 1 . . . . . 2 2 . 1 . . . . 1 . 1 . Extermination 22 | . . . . . . . . . . . 2 . 1 . 2 . . . 3 2 . 1 2 . 1 . 2 2 2 1 . 1 . Reinforcement 29 | . . . . . . . . . 3 . 5 . 3 . . 1 . . 5 2 . 1 2 . 1 . . 2 1 1 . 2 . Assault . | . . . . . . . . . . . . . . . . . . . . . . . . . . . . . . . . . . Garrison 1 | . . . . . . . . . . . . . . . . . . . . . . . . . 1 . . . . . . . . Intercept . | . . . . . . . . . . . . . . . . . . . . . . . . . . . . . . . . . . Searches Triggered . | . . . . . . . . . . . . . . . . . . . . . . . . . . . . . . . . . . Construction Impeded 4 | . . . . . . . . . . . 1 . . . . 1 . . 2 . . . . . . . . . . . . . . Haulers Reinforced . | . . . . . . . . . . . . . . . . . . . . . . . . . . . . . . . . . . Active Scanning Responses . | . . . . . . . . . . . . . . . . . . . . . . . . . . . . . . . . . . Cargo Convoy Interrupts . | . . . . . . . . . . . . . . . . . . . . . . . . . . . . . . . . . . Stealth | -11 -10 -10 -9 -9 -9 -8 -8 -8 -8 -8 -7 -7 -7 -7 -6 -6 -6 -6 -6 -5 -5 -5 -4 -4 -4 -3 -3 -3 -2 -2 -1 -1 -1 --------- Run | Yrd Mat Min Mat Min Exi Min Mat Gar Mat Gar Fac Gar Fac Gar Fac Ext Cet Arc Hub Fac Was Fac Fac Was Fac Res Qua Sec Res Tes Acc Com Ac0 Distress Signals 21 | . 1 . 3 . . . 3 . 1 . . . . . . . 1 . 2 1 . 1 . . 1 2 . 1 1 1 . 2 . Communications Jammed . | . . . . . . . . . . . . . . . . . . . . . . . . . . . . . . . . . . Distress Signals . | . . . . . . . . . . . . . . . . . . . . . . . . . . . . . . . . . . Times Spotted 595 | . 22 2 47 5 . 3 36 14 39 21 29 26 21 25 15 23 7 15 51 12 6 14 13 1 19 4 15 12 16 12 6 51 13 Peak Tracking Total 16 | . 3 2 7 2 . 3 4 4 9 6 5 4 4 7 4 4 4 1 7 4 6 6 5 1 4 5 3 4 9 5 6 16 13 Tactical Retreats 45 | . 1 . 1 . . . 4 . 7 . . 2 1 3 2 . . . 3 2 . 3 3 . 2 . . 1 1 1 1 7 . Traps | -11 -10 -10 -9 -9 -9 -8 -8 -8 -8 -8 -7 -7 -7 -7 -6 -6 -6 -6 -6 -5 -5 -5 -4 -4 -4 -3 -3 -3 -2 -2 -1 -1 -1 ------- Run | Yrd Mat Min Mat Min Exi Min Mat Gar Mat Gar Fac Gar Fac Gar Fac Ext Cet Arc Hub Fac Was Fac Fac Was Fac Res Qua Sec Res Tes Acc Com Ac0 Traps Triggered 25 | . . . 1 . . . . . 1 2 2 6 . 1 1 3 . . 2 1 . . 1 . . 1 . . . 1 . 2 . Indirectly . | . . . . . . . . . . . . . . . . . . . . . . . . . . . . . . . . . . Trap Hack Attempts . | . . . . . . . . . . . . . . . . . . . . . . . . . . . . . . . . . . Triggered . | . . . . . . . . . . . . . . . . . . . . . . . . . . . . . . . . . . Disarmed 10 | . . . . . . . 10 . . . . . . . . . . . . . . . . . . . . . . . . . . Reprogrammed 10 | . . . . . . . . . . . . . . . . . . . . 10 . . . . . . . . . . . . . Reused . | . . . . . . . . . . . . . . . . . . . . . . . . . . . . . . . . . . Traps Extracted . | . . . . . . . . . . . . . . . . . . . . . . . . . . . . . . . . . . Installed . | . . . . . . . . . . . . . . . . . . . . . . . . . . . . . . . . . . Triggered . | . . . . . . . . . . . . . . . . . . . . . . . . . . . . . . . . . . Machines | -11 -10 -10 -9 -9 -9 -8 -8 -8 -8 -8 -7 -7 -7 -7 -6 -6 -6 -6 -6 -5 -5 -5 -4 -4 -4 -3 -3 -3 -2 -2 -1 -1 -1 ---------- Run | Yrd Mat Min Mat Min Exi Min Mat Gar Mat Gar Fac Gar Fac Gar Fac Ext Cet Arc Hub Fac Was Fac Fac Was Fac Res Qua Sec Res Tes Acc Com Ac0 Machines Disabled 97 | . 1 1 2 . . 7 2 6 . 5 5 2 5 . . 4 1 5 23 1 . 1 . . 4 . 5 7 1 3 2 4 . Max in Single Turn 13 | . 1 1 1 . . 4 1 2 . 2 3 1 3 . . 1 1 1 13 1 . 1 . . . . 1 1 1 1 1 2 . Garrison Access 12 | . . . . . . . . . . . . . 2 . . . . . . 1 . 1 1 . 2 . 1 . 1 . 3 . . Garrison Relay 6 | . . . . . . . . 2 . 2 . 2 . . . . . . . . . . . . . . . . . . . . . Phase Generator 2 | . . . . . . . . 1 . . . . . . . . . . . . . . . . . . . . . . . 1 . Network Hub 4 | . . . . . . . . . . . . . . . . . . . 4 . . . . . . . . . . . . . . Machines Repaired . | . . . . . . . . . . . . . . . . . . . . . . . . . . . . . . . . . . Machines Dismantled 3 | . . . . . . . . . . . . . . . . 2 1 . . . . . . . . . . . . . . . . Machines Sabotaged . | . . . . . . . . . . . . . . . . . . . . . . . . . . . . . . . . . . Overloaded Fab Kills . | . . . . . . . . . . . . . . . . . . . . . . . . . . . . . . . . . . Hacking | -11 -10 -10 -9 -9 -9 -8 -8 -8 -8 -8 -7 -7 -7 -7 -6 -6 -6 -6 -6 -5 -5 -5 -4 -4 -4 -3 -3 -3 -2 -2 -1 -1 -1 --------- Run | Yrd Mat Min Mat Min Exi Min Mat Gar Mat Gar Fac Gar Fac Gar Fac Ext Cet Arc Hub Fac Was Fac Fac Was Fac Res Qua Sec Res Tes Acc Com Ac0 Machines Accessed 193 | . 10 . 11 . 2 1 14 1 10 2 8 2 11 1 7 12 1 . 9 9 . 12 13 . 13 1 12 7 7 5 7 5 . Terminals 133 | . 7 . 8 . . 1 9 1 7 2 5 2 5 1 5 11 1 . 9 7 . 6 8 . 5 . 10 7 5 3 4 4 . Fabricators 13 | . . . . . . . . . . . . . 1 . 1 . . . . . . 4 3 . 3 . . . . 1 . . . Repair Stations 8 | . 1 . . . . . 2 . 1 . 1 . . . 1 . . . . . . . . . 1 . . . . . . 1 . Recycling Units 15 | . 2 . 2 . . . . . . . 1 . 2 . . 1 . . . 1 . 1 1 . 2 1 . . 1 . . . . Scanalyzers 6 | . . . 1 . . . 2 . 1 . . . . . . . . . . . . . . . . . 1 . . 1 . . . Garrison Access 16 | . . . . . . . 1 . 1 . 1 . 3 . . . . . . 1 . 1 1 . 2 . 1 . 1 . 3 . . Total Hacks 738 | . 22 . 36 . 2 2 54 1 26 3 16 6 38 3 12 29 1 . 45 71 . 81 85 . 47 5 51 20 34 31 8 9 . Successful 450 | . 14 . 27 . 2 . 34 1 15 2 7 1 17 1 7 8 . . 13 40 . 61 57 . 33 3 33 15 24 23 7 5 . Failed 285 | . 8 . 9 . . 2 20 . 11 1 9 5 21 2 5 21 1 . 32 30 . 20 27 . 14 2 17 5 10 8 1 4 . Catastrophic 37 | . . . 1 . . . 3 . 1 . 4 2 2 . 3 5 . . 6 2 . . 2 . 3 . 1 1 . . 1 . . Database Lockouts 3 | . . . . . . . . . . . . . . . . . . . . 1 . . 1 . . . 1 . . . . . . Manual 396 | . 20 . 21 . 1 1 28 . 6 . 7 2 20 . 7 8 1 . 20 41 . 49 58 . 32 4 25 9 15 15 2 4 . Terminals 579 | . 18 . 29 . . 2 41 1 18 3 10 6 25 3 9 23 1 . 45 64 . 57 64 . 26 . 47 20 30 24 5 8 . Fabricators 53 | . . . . . . . . . . . . . 4 . 1 . . . . . . 19 15 . 10 . . . . 4 . . . Repair Stations 16 | . 2 . . . . . 4 . 2 . 3 . . . 2 . . . . . . . . . 2 . . . . . . 1 . Recycling Units 48 | . 2 . 3 . . . . . . . 2 . 6 . . 6 . . . 5 . 4 5 . 7 5 . . 3 . . . . Scanalyzers 22 | . . . 4 . . . 7 . 5 . . . . . . . . . . . . . . . . . 3 . . 3 . . . Garrison Access 18 | . . . . . . . 2 . 1 . 1 . 3 . . . . . . 2 . 1 1 . 2 . 1 . 1 . 3 . . Terminal Hacks 199 | . 2 . 13 . 2 . 11 1 5 2 . 1 6 1 3 6 . . 11 21 . 22 25 . 6 . 20 12 11 12 3 3 . Record 2 | . . . . . 1 . . . . . . . . . . . . . . . . . . . . . 1 . . . . . . Part Schematic 17 | . . . 1 . . . 1 . . . . . . . . . . . 1 1 . 3 1 . 3 . 2 . 3 1 . . . Robot Analysis 9 | . 2 . 1 . . . 1 . . . . . . . . . . . . . . . . . . . 3 1 . 1 . . . Prototype ID Bank 18 | . . . 1 . . . 1 . 1 . . . 1 . . . . . 2 3 . 2 2 . . . 2 1 1 1 . . . Open Door 18 | . . . . . . . . 1 . 1 . . . . 1 6 . . . . . . . . . . . 5 . . 3 1 . Level Access Points 5 | . . . . . . . . . . . . . . . . . . . . . . 1 1 . . . 1 . 1 1 . . . Emergency Access Points 4 | . . . . . . . . . . . . 1 . 1 . . . . . . . 1 1 . . . . . . . . . . Machine Index 4 | . . . . . . . . . . . . . . . . . . . . 1 . 1 . . . . 1 . 1 . . . . Terminal Index 11 | . . . 1 . . . . . 1 . . . 1 . 1 . . . 1 1 . 1 1 . 1 . 1 1 . . . . . Fabricator Index 2 | . . . . . . . . . . . . . . . . . . . . . . . 1 . . . . . . 1 . . . Repair Station Index 4 | . . . . . . . . . . . . . . . . . . . . 1 . . 2 . . . . . . 1 . . . Recycling Unit Index 1 | . . . . . . . . . . . . . . . . . . . . . . . . . . . . 1 . . . . . Scanalyzer Index 2 | . . . . . . . . . . . . . . . . . . . . 1 . 1 . . . . . . . . . . . Garrison Index 4 | . . . . . . . . . . . . . . . . . . . . 1 . . 1 . . . . 1 . 1 . . . Alert Level 7 | . . . 3 . . . 3 . 1 . . . . . . . . . . . . . . . . . . . . . . . . Unreport Threat 8 | . . . 1 . . . 1 . 2 . . . 1 . . . . . 2 1 . . . . . . . . . . . . . Locate Traps 17 | . . . 2 . . . . . . . . . 2 . . . . . 1 2 . 2 2 . 1 . 2 . 2 1 . . . Disarm Traps 2 | . . . . . . . 2 . . . . . . . . . . . . . . . . . . . . . . . . . . Reprogram Traps 2 | . . . . . . . . . . . . . . . . . . . . 2 . . . . . . . . . . . . . Dispatch Records 1 | . . . . . . . 1 . . . . . . . . . . . . . . . . . . . . . . . . . . Maintenance Status 6 | . . . . . . . . . . . . . 1 . . . . . 1 1 . 1 1 . . . . . 1 . . . . Security Status 2 | . . . . . . . . . . . . . . . . . . . . . . 1 . . . . 1 . . . . . . Surveillance Status 2 | . . . . . . . . . . . . . . . . . . . . . . . . . . . . . 1 1 . . . Patrol Status 12 | . . . . . . . . . . . . . . . 1 . . . 1 . . 3 2 . 1 . 2 1 . 1 . . . Transport Status 1 | . . . . . . . . . . . . . . . . . . . . . . . . . . . 1 . . . . . . Reinforcement Status 1 | . . . . . . . . . . . . . . . . . . . . 1 . . . . . . . . . . . . . Recall Investigation 2 | . . . . . . . . . . . . . . . . . . . . . . . 2 . . . . . . . . . . Recall Extermination 7 | . . . . . . . . . . . . . . . . . . . . 1 . . 2 . . . 2 1 1 . . . . Recall Reinforcements 2 | . . . . . . . . . . . . . . . . . . . . 2 . . . . . . . . . . . . . Hauler Manifests 7 | . . . 1 . . . 1 . . . . . . . . . . . 1 . . 1 1 . . . 1 . . 1 . . . Registered Components 3 | . . . . . . . . . . . . . . . . . . . . 1 . 1 1 . . . . . . . . . . Registered Prototypes 3 | . . . 1 . . . . . . . . . . . . . . . . . . . 1 . . . . . . 1 . . . Zone Layout 9 | . . . 1 . . . . . . . . . . . . . . . 1 1 . 3 3 . . . . . . . . . . Garrison Registry 1 | . . . . . . . . . . 1 . . . . . . . . . . . . . . . . . . . . . . . Proto ID Catalog 1 | . . . . . 1 . . . . . . . . . . . . . . . . . . . . . . . . . . . . Disengage Seal 2 | . . . . . . . . . . . . . . . . . . . . . . . . . . . . . . . . 2 . Fabricator Hacks 16 | . . . . . . . . . . . . . . . . . . . . . . 6 5 . 3 . . . . 2 . . . Network Status 1 | . . . . . . . . . . . . . . . . . . . . . . . 1 . . . . . . . . . . Load Schematic 8 | . . . . . . . . . . . . . . . . . . . . . . 3 2 . 2 . . . . 1 . . . Build 7 | . . . . . . . . . . . . . . . . . . . . . . 3 2 . 1 . . . . 1 . . . Repair Station Hacks 15 | . 2 . . . . . 4 . 2 . 2 . . . 2 . . . . . . . . . 2 . . . . . . 1 . Scan Component 7 | . 1 . . . . . 2 . 1 . 1 . . . 1 . . . . . . . . . 1 . . . . . . . . Repair 7 | . 1 . . . . . 2 . 1 . 1 . . . 1 . . . . . . . . . 1 . . . . . . . . Refit 1 | . . . . . . . . . . . . . . . . . . . . . . . . . . . . . . . . 1 . Recycling Unit Hacks 8 | . . . . . . . . . . . . . . . . . . . . 1 . 1 1 . 1 1 . . 3 . . . . Process 1 | . . . . . . . . . . . . . . . . . . . . . . . . . . . . . 1 . . . . Report Inventory 1 | . . . . . . . . . . . . . . . . . . . . . . . . . . . . . 1 . . . . Retrieve Matter 1 | . . . . . . . . . . . . . . . . . . . . . . . . . . . . . 1 . . . . Retrieve Components 5 | . . . . . . . . . . . . . . . . . . . . 1 . 1 1 . 1 1 . . . . . . . Scanalyzer 16 | . . . 4 . . . 6 . 4 . . . . . . . . . . . . . . . . . 1 . . 1 . . . Insert Component 9 | . . . 2 . . . 3 . 2 . . . . . . . . . . . . . . . . . 1 . . 1 . . . Analyze 7 | . . . 2 . . . 3 . 2 . . . . . . . . . . . . . . . . . . . . . . . . Garrison Access Hacks 17 | . . . . . . . 1 . 1 . 1 . 3 . . . . . . 2 . 1 1 . 2 . 1 . 1 . 3 . . Unlock Access 4 | . . . . . . . 1 . 1 . 1 . 1 . . . . . . . . . . . . . . . . . . . . Seal Access 12 | . . . . . . . . . . . . . 2 . . . . . . 1 . 1 1 . 2 . 1 . 1 . 3 . . Coupler Status 1 | . . . . . . . . . . . . . . . . . . . . 1 . . . . . . . . . . . . . Unauthorized Hacks 179 | . 10 . 10 . . . 12 . 3 . 4 . 8 . 2 2 . . 2 16 . 31 25 . 19 2 11 3 9 8 1 1 . Terminals 129 | . 8 . 8 . . . 12 . 3 . 2 . 6 . 2 . . . 2 13 . 18 16 . 9 . 10 3 9 6 1 1 . Track 13 | . . . . . . . 2 . . . 1 . . . 1 . . . . 1 . 3 3 . . . . . . . 1 1 . Assimilate 10 | . 1 . . . . . 1 . . . . . . . . . . . . 1 . 2 . . 1 . 3 . 1 . . . . Botnet 36 | . 1 . 2 . . . 2 . 2 . 1 . 2 . 1 . . . 2 4 . 5 5 . 2 . 2 1 2 2 . . . Disrupt 4 | . . . . . . . . . . . . . . . . . . . . 1 . 2 1 . . . . . . . . . . Operators 12 | . 1 . 1 . . . 1 . . . . . 1 . . . . . . 1 . 1 2 . 1 . . 1 1 1 . . . Skim 54 | . 5 . 5 . . . 6 . 1 . . . 3 . . . . . . 5 . 5 5 . 5 . 5 1 5 3 . . . Fabricators 25 | . . . . . . . . . . . . . . . . . . . . . . 10 7 . 7 . . . . 1 . . . Report 2 | . . . . . . . . . . . . . . . . . . . . . . 1 . . 1 . . . . . . . . Prioritize 8 | . . . . . . . . . . . . . . . . . . . . . . 3 3 . 1 . . . . 1 . . . Liberate 9 | . . . . . . . . . . . . . . . . . . . . . . 4 2 . 3 . . . . . . . . Haulers 4 | . . . . . . . . . . . . . . . . . . . . . . 1 2 . 1 . . . . . . . . Recompile 2 | . . . . . . . . . . . . . . . . . . . . . . 1 . . 1 . . . . . . . . Repair Stations 1 | . . . . . . . . . . . 1 . . . . . . . . . . . . . . . . . . . . . . Mechanics 1 | . . . . . . . . . . . 1 . . . . . . . . . . . . . . . . . . . . . . Recycling Units 22 | . 2 . 2 . . . . . . . 1 . 2 . . 2 . . . 3 . 3 2 . 3 2 . . . . . . . Reject 3 | . . . . . . . . . . . . . . . . . . . . 1 . 1 . . 1 . . . . . . . . Recyclers 8 | . . . . . . . . . . . 1 . 1 . . 1 . . . 1 . 1 1 . 1 1 . . . . . . . Mask 7 | . . . . . . . . . . . . . 1 . . 1 . . . 1 . 1 1 . 1 1 . . . . . . . Tunnel 4 | . 2 . 2 . . . . . . . . . . . . . . . . . . . . . . . . . . . . . . Scanalyzers 2 | . . . . . . . . . . . . . . . . . . . . . . . . . . . 1 . . 1 . . . Researchers 2 | . . . . . . . . . . . . . . . . . . . . . . . . . . . 1 . . 1 . . . Garrison Access . | . . . . . . . . . . . . . . . . . . . . . . . . . . . . . . . . . . Data Cores Recovered 3 | . . . . . . . 1 . . . . . . . 1 . . . . . . . . . 1 . . . . . . . . Used . | . . . . . . . . . . . . . . . . . . . . . . . . . . . . . . . . . . Hacking Detections 139 | . 8 . 10 . . 1 12 . 9 1 6 2 8 1 5 8 . . 9 8 . 7 10 . 8 1 6 5 6 5 2 1 . Full Trace Events 10 | . . . . . . . 1 . 1 . 1 1 1 1 . . . . . . . 1 2 . . . . . . 1 . . . Feedback Events . | . . . . . . . . . . . . . . . . . . . . . . . . . . . . . . . . . . Feedback Blocked . | . . . . . . . . . . . . . . . . . . . . . . . . . . . . . . . . . . Robot Schematics Acquired . | . . . . . . . . . . . . . . . . . . . . . . . . . . . . . . . . . . Robots Built 3 | . . . . . . . . . . . . . . . . . . . . . . 3 . . . . . . . . . . . Authchips . | . . . . . . . . . . . . . . . . . . . . . . . . . . . . . . . . . . Time 169 | . . . . . . . . . . . . . . . . . . . . . . 169 . . . . . . . . . . . Total Robot Build Rating 18 | . . . . . . . . . . . . . . . . . . . . . . 18 . . . . . . . . . . . Part Schematics Acquired 23 | . . . 3 . . . 3 . 2 . . . . . . . . . 1 1 . 3 1 . 3 . 2 . 3 1 . . . Parts Built 7 | . . . . . . . . . . . . . . . . . . . . . . 2 3 . 1 . . . . 1 . . . Authchips 2 | . . . . . . . . . . . . . . . . . . . . . . 1 . . 1 . . . . . . . . Time 210 | . . . . . . . . . . . . . . . . . . . . . . 76 54 . 46 . . . . 34 . . . Total Part Build Rating 44 | . . . . . . . . . . . . . . . . . . . . . . 10 19 . 7 . . . . 8 . . . Parts Repaired 7 | . 1 . . . . . 2 . 1 . 1 . . . 1 . . . . . . . . . 1 . . . . . . . . Time 278 | . 26 . . . . . 64 . 51 . 53 . . . 44 . . . . . . . . . 40 . . . . . . . . Parts Recycled . | . . . . . . . . . . . . . . . . . . . . . . . . . . . . . . . . . . Recycled Matter 54 | . . . . . . . . . . . . . . . . . . . . . . . . . . . . . 54 . . . . Retrieved Matter 54 | . . . . . . . . . . . . . . . . . . . . . . . . . . . . . 54 . . . . Retrieved Components 13 | . . . . . . . . . . . . . . . . . . . . 1 . 2 . . 10 . . . . . . . . Parts Scanalyzed 7 | . . . 2 . . . 3 . 2 . . . . . . . . . . . . . . . . . . . . . . . . Part Schematics Acquired 6 | . . . 2 . . . 2 . 2 . . . . . . . . . . . . . . . . . . . . . . . . Parts Damaged 1 | . . . . . . . 1 . . . . . . . . . . . . . . . . . . . . . . . . . . Bothacking | -11 -10 -10 -9 -9 -9 -8 -8 -8 -8 -8 -7 -7 -7 -7 -6 -6 -6 -6 -6 -5 -5 -5 -4 -4 -4 -3 -3 -3 -2 -2 -1 -1 -1 ------------ Run | Yrd Mat Min Mat Min Exi Min Mat Gar Mat Gar Fac Gar Fac Gar Fac Ext Cet Arc Hub Fac Was Fac Fac Was Fac Res Qua Sec Res Tes Acc Com Ac0 Used RIF Installer 4 | . . . . . . . . 1 . 1 . 1 . 1 . . . . . . . . . . . . . . . . . . . Coupler Efficiency 1 | . . . . . . . . . . 1 . . . . . . . . . . . . . . . . . . . . . . . Threat Obfuscator 1 | . . . . . . . . . . . . . . 1 . . . . . . . . . . . . . . . . . . . Watcher Feeds 1 | . . . . . . . . . . . . 1 . . . . . . . . . . . . . . . . . . . . . Robots Hacked 16 | . . . . . . . . . . . 3 1 . . 1 2 . . 1 . . 2 1 . 1 . 1 2 . 1 . . . Non-combat 9 | . . . . . . . . . . . 1 . . . 1 1 . . 1 . . 2 1 . 1 . 1 . . . . . . Combat 7 | . . . . . . . . . . . 2 1 . . . 1 . . . . . . . . . . . 2 . 1 . . . Robot Hacks Applied 19 | . . . . . . . . . . . 5 1 . . 1 2 . . 1 . . 2 1 . 1 . 1 3 . 1 . . . parse_system 1 | . . . . . . . . . . . . . . . . 1 . . . . . . . . . . . . . . . . . find_chute 2 | . . . . . . . . . . . . . . . 1 . . . . . . . 1 . . . . . . . . . . find_fabricator 1 | . . . . . . . . . . . 1 . . . . . . . . . . . . . . . . . . . . . . drop_inventory 2 | . . . . . . . . . . . 1 . . . . . . . . . . . . . . . 1 . . . . . . locate_stockpiles 1 | . . . . . . . . . . . 1 . . . . . . . . . . . . . . . . . . . . . . recall_investigation 1 | . . . . . . . . . . . . . . . . . . . . . . 1 . . . . . . . . . . . map_route 3 | . . . . . . . . . . . . . . . . . . . 1 . . 1 . . 1 . . . . . . . . find_scanalyzer 1 | . . . . . . . . . . . . . . . . . . . . . . . . . . . . 1 . . . . . disable_scanner 1 | . . . . . . . . . . . . . . . . . . . . . . . . . . . . . . 1 . . . formatsys_low 3 | . . . . . . . . . . . . . . . . 1 . . . . . . . . . . . 2 . . . . . formatsys_high 3 | . . . . . . . . . . . 2 1 . . . . . . . . . . . . . . . . . . . . . Relay Couplers Released 24 | . . . . . . . . 8 . 8 . 6 . . . . . . . . . . . . 2 . . . . . . . . Machine Destruction 24 | . . . . . . . . 8 . 8 . 6 . . . . . . . . . . . . 2 . . . . . . . . Attached 8 | . . . . . . . . . . . 3 1 1 1 . . . . . . . . 1 . . . . . . . . 1 . Fabnet Peak Effective % . | . . . . . . . . . . . . . . . . . . . . . . . . . . . . . . . . . . Robots Rewired 17 | . . . . . . . . 2 . . . 5 . . . 10 . . . . . . . . . . . . . . . . . Allies Hacked . | . . . . . . . . . . . . . . . . . . . . . . . . . . . . . . . . . . Hacks Repelled . | . . . . . . . . . . . . . . . . . . . . . . . . . . . . . . . . . . Allies | -11 -10 -10 -9 -9 -9 -8 -8 -8 -8 -8 -7 -7 -7 -7 -6 -6 -6 -6 -6 -5 -5 -5 -4 -4 -4 -3 -3 -3 -2 -2 -1 -1 -1 -------- Run | Yrd Mat Min Mat Min Exi Min Mat Gar Mat Gar Fac Gar Fac Gar Fac Ext Cet Arc Hub Fac Was Fac Fac Was Fac Res Qua Sec Res Tes Acc Com Ac0 Total Allies 72 | . 1 . . . . . . 2 . 2 2 7 . . . 22 5 . . 1 . 4 . 20 3 . 1 2 . . . . . Largest Group 20 | . 1 1 1 . . . . 2 2 2 2 4 . . . 18 20 15 8 1 1 4 . 20 18 2 1 2 . . . . . Highest-Rated Group 1117 | . 10 10 10 . . . . 51 51 70 27 104 . . . 697 1117 947 589 10 10 116 . 756 656 98 45 98 . . . . . Highest-Rated Ally 159 | . 10 10 10 . . . . 31 31 39 16 32 . . . 159 159 159 96 10 10 30 . 50 49 49 45 49 . . . . . Total Orders 87 | . 2 . . . . . . . . . . . . . . 12 19 14 2 23 . 8 1 . . . 4 2 . . . . . STAY 31 | . 1 . . . . . . . . . . . . . . 5 8 7 2 1 . 3 . . . . 2 2 . . . . . ROAM 7 | . . . . . . . . . . . . . . . . . 1 6 . . . . . . . . . . . . . . . FOLLOW 19 | . 1 . . . . . . . . . . . . . . 7 8 1 . . . . . . . . 2 . . . . . . AID 2 | . . . . . . . . . . . . . . . . . 2 . . . . . . . . . . . . . . . . EXPLORE 16 | . . . . . . . . . . . . . . . . . . . . 13 . 3 . . . . . . . . . . . RETURN 12 | . . . . . . . . . . . . . . . . . . . . 9 . 2 1 . . . . . . . . . . Ally Attacks 494 | . . . . . . . . . 9 6 8 52 . . . 56 69 35 110 . . 11 . 11 122 5 . . . . . . . Total Damage 11189 | . . . . . . . . . 159 70 49 975 . . . 1019 1398 819 3450 . . 181 . 167 2779 123 . . . . . . . Kills 65 | . . . . . . . . . 1 1 . 5 . . . 6 9 4 16 . . 2 . 1 20 . . . . . . . . Allies Corrupted 3 | . . . . . . . . . . . . . . . . . . . 1 1 . . . . 1 . . . . . . . . Allies Melted 1 | . . . . . . . . . . . . . . . . . . . . . . . . . 1 . . . . . . . . Intel | -11 -10 -10 -9 -9 -9 -8 -8 -8 -8 -8 -7 -7 -7 -7 -6 -6 -6 -6 -6 -5 -5 -5 -4 -4 -4 -3 -3 -3 -2 -2 -1 -1 -1 ------- Run | Yrd Mat Min Mat Min Exi Min Mat Gar Mat Gar Fac Gar Fac Gar Fac Ext Cet Arc Hub Fac Was Fac Fac Was Fac Res Qua Sec Res Tes Acc Com Ac0 Active Infowar (turns) 10501 | 56 268 . . 150 . . 1 . . . 1144 52 . . 883 301 412 507 306 483 57 440 952 230 689 70 1026 893 448 316 338 479 . Sensors 7789 | . . . . . . . . . . . . . . . 242 80 412 507 306 483 57 439 938 230 674 70 1023 851 447 316 242 472 . Terrain 3949 | . . . . . . . . . . . 43 . . . 877 301 . . . . . . . . 6 70 747 516 394 316 338 341 . Seismic 711 | 56 268 . . 150 . . 1 . . . . . . . 236 . . . . . . . . . . . . . . . . . . Machine Analysis 1196 | . . . . . . . . . . . 1144 52 . . . . . . . . . . . . . . . . . . . . . Cloaking 1172 | . . . . . . . . . . . . . . . . . . . . . . 51 136 2 18 . 33 157 342 151 38 244 . ECM 44 | . . . . . . . . . . . . . . . . . . . . . . . . . . . . . . 44 . . . Robot Analysis Total 9 | . 2 . 1 . . . 1 . . . . . . . . . . . . . . . . . . . 3 1 . 1 . . . Derelict Logs Recovered 1 | . . . . 1 . . . . . . . . . . . . . . . . . . . . . . . . . . . . . Drone Launches 12 | . . . . . . . . . . . . . . . . . . . . 9 . 2 1 . . . . . . . . . . Drone Recoveries 7 | . . . . . . . . . . . . . . . . . . . . 4 . 2 1 . . . . . . . . . . Exploration | -11 -10 -10 -9 -9 -9 -8 -8 -8 -8 -8 -7 -7 -7 -7 -6 -6 -6 -6 -6 -5 -5 -5 -4 -4 -4 -3 -3 -3 -2 -2 -1 -1 -1 ------------- Run | Yrd Mat Min Mat Min Exi Min Mat Gar Mat Gar Fac Gar Fac Gar Fac Ext Cet Arc Hub Fac Was Fac Fac Was Fac Res Qua Sec Res Tes Acc Com Ac0 Turns Passed 30505 | 128 1699 98 2546 1117 525 907 2179 1199 2132 1030 1231 1063 1308 741 1000 1608 641 507 1919 636 57 467 1012 234 691 70 1049 966 449 316 338 576 66 Spaces Moved 22897 | 61 908 44 1317 601 319 518 1086 586 872 375 739 570 767 327 577 965 274 159 1143 1348 105 827 1342 363 1307 115 1795 1081 727 353 554 560 212 Core 88 | 11 . . . . . . . . . . . . . . . . . . . . . . . . . . . . . . . 5 72 Treads 7648 | . 773 44 1302 601 319 518 1086 586 872 375 11 . . . . . 237 159 765 . . . . . . . . . . . . . . Legs 189 | 50 135 . . . . . . . . . . . . . . . . . . . . . . . . . . . . . . 4 . Wheels 4047 | . . . 15 . . . . . . . 728 570 767 327 577 965 37 . 61 . . . . . . . . . . . . . . Hover . | . . . . . . . . . . . . . . . . . . . . . . . . . . . . . . . . . . Flight 10925 | . . . . . . . . . . . . . . . . . . . 317 1348 105 827 1342 363 1307 115 1795 1081 727 353 554 551 140 Fastest Speed 20 | 50 120 160 130 160 160 160 160 163 160 155 130 130 130 130 108 108 125 160 50 34 34 34 34 39 39 39 34 34 26 26 32 21 20 Average Speed 98 | 141 154 160 159 160 160 160 160 163 195 233 132 130 130 130 116 115 155 160 129 38 38 38 38 39 39 39 38 48 37 30 33 40 30 Slowest Speed 620 | 190 160 160 240 160 160 160 163 163 245 235 235 130 130 130 130 185 160 160 620 39 39 110 39 121 39 39 39 50 39 115 37 260 50 Overloaded Moves 396 | . . . . . . . . . . . . . . . . . . . . 5 17 48 9 . . . 102 50 42 28 . 95 . Propulsion Burnouts . | . . . . . . . . . . . . . . . . . . . . . . . . . . . . . . . . . . Robots Hopped 96 | . . . . . . . . . . . . . . . . . . . 7 19 . 2 6 . 5 1 20 6 2 5 14 6 3 Potential Cave-ins 10 | . . . . . . . . . . . . . . . . . . . . . . . . . . . 2 3 . . . 5 . Cave-ins Triggered 1 | . . . . . . . . . . . . . . . . . . . . . . . . . . . . . . . . 1 . Teleports 2 | . . . . . . . . . . . . . . . . . . . . . . . . . . . . 1 . . . 1 . Exploration Rate (%) 54 | 4 97 13 91 96 70 95 70 65 77 56 30 63 31 42 18 92 68 84 95 49 78 22 36 95 28 9 89 57 26 54 18 29 17 Regions Visited 33 Branch Regions 13 Pre-discovered Areas 16 | . 4 . 3 2 1 . . . . . . . . . . . . . . . . . 2 . 1 . 3 . . . . . . Known Exits Taken 18 | . 1 1 1 . . 1 1 . 1 . 1 . 1 . 1 . . . . . . 1 . . 1 1 1 1 1 1 1 1 . Unknown Exits Taken 7 | 1 . . . 1 1 . . . . . . . . . . 1 1 1 1 . . . . . . . . . . . . . . Scrap Searched 3 | . . . . 1 . 2 . . . . . . . . . . . . . . . . . . . . . . . . . . . Spaces Dug 354 | . 1 . . . . . 5 . 1 27 35 8 30 28 2 . . . 18 12 . 9 32 . 22 2 22 25 15 4 9 47 . Terrain Destroyed 1108 | . 2 13 . . . 37 5 72 1 43 95 32 42 34 2 . . 5 360 33 . 10 33 . 22 2 32 27 23 14 14 155 . Melee 147 | . . . . . . . 5 . 1 5 24 8 15 . . . . . . . . 8 32 . 22 2 15 10 . . . . . Projectile 164 | . 2 . . . . . . . . . 2 . 1 . 2 . . 5 13 7 . 2 1 . . . 17 17 23 14 14 44 . AOE 797 | . . 13 . . . 37 . 72 . 38 69 24 26 34 . . . . 347 26 . . . . . . . . . . . 111 . Terrain Rammed . | . . . . . . . . . . . . . . . . . . . . . . . . . . . . . . . . . . Walls Destroyed . | . . . . . . . . . . . . . . . . . . . . . . . . . . . . . . . . . . Machines Disabled . | . . . . . . . . . . . . . . . . . . . . . . . . . . . . . . . . . . Actions | -11 -10 -10 -9 -9 -9 -8 -8 -8 -8 -8 -7 -7 -7 -7 -6 -6 -6 -6 -6 -5 -5 -5 -4 -4 -4 -3 -3 -3 -2 -2 -1 -1 -1 --------- Run | Yrd Mat Min Mat Min Exi Min Mat Gar Mat Gar Fac Gar Fac Gar Fac Ext Cet Arc Hub Fac Was Fac Fac Was Fac Res Qua Sec Res Tes Acc Com Ac0 Total 28435 | 88 1091 54 1561 709 337 561 1341 734 1135 449 924 789 936 533 795 1312 472 370 1426 1424 121 939 1750 445 1436 135 2032 1461 848 520 639 857 211 Wait 2823 | . 69 . 51 74 . 16 107 67 110 6 67 47 50 105 95 164 155 156 66 38 17 74 319 67 85 8 138 285 64 114 41 167 1 Move 22687 | 60 907 43 1316 600 318 517 1085 585 871 373 738 568 767 326 576 964 273 158 1128 1312 104 822 1331 362 1296 112 1755 1070 722 344 530 548 206 Hop 81 | . . . . . . . . . . . . . . . . . . . 7 17 . 2 5 . 5 1 19 4 2 3 9 4 3 Pick Up 237 | 12 12 . 20 1 4 2 12 1 10 4 18 18 4 12 9 7 3 5 17 4 . 4 7 2 6 . 9 15 6 2 3 7 1 Fast Attach 168 | 3 4 . 9 . . . 1 1 11 1 6 . 9 6 14 9 11 3 29 12 . 1 7 2 . . 8 7 . 6 1 7 . Attach 118 | 4 . . 4 . . . 3 1 4 2 5 12 . 7 . 2 2 . 13 6 . 2 5 . 2 2 4 4 4 1 4 25 . Detach 32 | . 2 . 2 . . . . . . . . . . 1 . . 1 . 4 6 . 1 2 . . . 1 1 . . 1 10 . Swap 305 | . 11 . 22 7 5 . 21 1 13 12 15 17 21 11 19 24 1 1 17 6 . 7 13 2 5 . 11 16 5 5 4 13 . Drop 339 | 1 14 . 28 2 10 2 22 1 25 2 19 6 13 8 18 11 16 7 45 11 . 2 12 4 4 . 16 14 4 6 3 13 . Fire 1073 | 8 64 10 102 22 . 18 79 52 80 33 4 15 33 55 63 71 2 40 92 12 . 8 1 . 1 . 26 24 41 30 43 44 . Melee 309 | . . . . . . . 5 . 1 11 43 40 39 2 . . . . . . . 16 48 6 30 2 45 21 . . . . . Ram 1 | . . . . . . . . . . . . . . . 1 . . . . . . . . . . . . . . . . . . Kick 2 | . 2 . . . . . . . . . . . . . . . . . . . . . . . . . . . . . . . . Crush 49 | . 6 1 7 3 . 6 6 1 10 1 . . . . . . . . 8 . . . . . . . . . . . . . . Escape Stasis 98 | . . . . . . . . . . 4 8 32 . . . 16 . . . . . . . . . 10 . . . 9 . 19 . Rewire 89 | . . . . . . . . 24 . . 1 34 . . . 28 . . . . . . . . 2 . . . . . . . . Trap . | . . . . . . . . . . . . . . . . . . . . . . . . . . . . . . . . . . Miscellaneous 24 | . . . . . . . . . . . . . . . . 16 8 . . . . . . . . . . . . . . . . Route ------- -11/Scrapyard -10/Materials (discovered 5 exits: *Mat x3 / *Min / Sub) -10/Mines (discovered 2 exits: *Mat x2) -9/Materials (discovered 5 exits: *Mat x3 / *Min x2) -9/Mines (discovered 3 exits: *Mat x2 / *Exi) -9/Exiles -8/Mines (discovered 2 exits: *Mat x2) -8/Materials (discovered 5 exits: *Fac x3 / Sto / Gar) -8/Garrison (discovered 2 exits: *Mat x2) -8/Materials (discovered 6 exits: *Fac x3 / *Sto x2 / Gar) -8/Garrison (discovered 3 exits: *Fac x3) -7/Factory (discovered 2 exits: *Fac / Gar) -7/Garrison (discovered 3 exits: *Fac x3) -7/Factory (discovered 2 exits: *Fac / Gar) -7/Garrison -6/Factory (discovered 4 exits: *Fac / [*Low] / *Ext x2) -6/Extension (discovered 2 exits: *Fac / *Cet) -6/Cetus (discovered 2 exits: *Fac / [*Arc]) -6/Archives (discovered 3 exits: *Fac / *Hub x2) -6/Hub_04(d) (discovered 4 exits: *Fac x4) -5/Factory (discovered 4 exits: *Fac x3 / *Upp) -5/Waste -5/Factory (discovered 5 exits: *Fac x4 / Upp) -4/Factory (discovered 6 exits: *Res x4 / *Upp x2) -4/Waste -4/Factory (discovered 4 exits: *Res x2 / Upp x2) -3/Research (discovered 5 exits: Res x2 / Arm / *Qua x2) -3/Quarantine (discovered 3 exits: *Res / *Sec / *Frg) -3/Section 7 -2/Research (discovered 5 exits: Acc x3 / *Tes x2) -2/Testing -1/Access -1/Command (discovered 2 exits: [Sur] / *Ac0) -1/Access_0 History --------- Turn | Location | Event 22 | -11/Scrapyard | Discovered new exit (range 15) 129 | -11/Scrapyard | Entered Materials 182 | -10/Materials | Discovered new exit (range 12) 301 | -10/Materials | Build established: Mutant 1057 | -10/Materials | Discovered new exit (range 8) 1263 | -10/Materials | Learned location of Recycling (-8) 1310 | -10/Materials | Discovered new exit (range 8) 1318 | -10/Materials | Identified exit to Mines 1396 | -10/Materials | Learned 2 Storage zone layouts 1501 | -10/Materials | Identified exit to Subcaves 1748 | -10/Materials | Repaired Lgt. Cannon 1828 | -10/Materials | Entered Mines 1828 | -10/Mines | Accompanied by 1 ally 1829 | -10/Mines | Identified exit to Materials 1926 | -10/Mines | Entered Materials 1926 | -9/Materials | Accompanied by 1 ally 1926 | -9/Materials | Evolved 2 slots: Propulsion x1, Weapon x1 1927 | -9/Materials | Identified exit to Mines 2647 | -9/Materials | Discovered exit to Mines (range 4) 2657 | -9/Materials | Discovered new exit (range 9) 2880 | -9/Materials | Discovered new exit (range 9) 2890 | -9/Materials | Build established: Scavenger-Mutant 2971 | -9/Materials | Identified exit to Materials 3018 | -9/Materials | Learned 2 Materials zone layouts 3056 | -9/Materials | Learned 8 Materials zone layouts 3083 | -9/Materials | Learned Storage garrison access intel 3149 | -9/Materials | Learned Storage security intel 3170 | -9/Materials | Discovered exit to Materials (range 5) 3240 | -9/Materials | Core integrity fell below 50% 3582 | -9/Materials | Build established: Scavenger-Gunner 4472 | -9/Materials | Entered Mines 4477 | -9/Mines | Met a Derelict bent on vengeance 4479 | -9/Mines | Received a Rocket Launcher from a helpful Derelict 4553 | -9/Mines | Assembled infested the area 4558 | -9/Mines | Assisted by a Guerilla fighting off Assembled 4565 | -9/Mines | Deemed a non-threat by the Exiles lab entrance 4567 | -9/Mines | Discovered new exit (range 5) 5372 | -9/Mines | Learned location of Storage (-8) 5589 | -9/Mines | Entered Exiles 5633 | -9/Exiles | Met 8R-AWN 5652 | -9/Exiles | Met EX-HEX 5754 | -9/Exiles | Met EX-DEC 5799 | -9/Exiles | Learned location of Zion (-7) 5828 | -9/Exiles | Met EX-BIN 5850 | -9/Exiles | Aligned with FarCom system 5852 | -9/Exiles | Given EX-Vault access code 5888 | -9/Exiles | Opened EX-Vault 5908 | -9/Exiles | Found Flying Fortress v7 5921 | -9/Exiles | Found Firepult 5953 | -9/Exiles | Found AWS/Thermal 5988 | -9/Exiles | Warned to stay clear of 0b10 Research branches 6098 | -9/Exiles | Discovered new exit (range 11) 6114 | -9/Exiles | Stole three prototypes: Flying Fortress v7, AWS/Thermal, Firepult 6114 | -9/Exiles | Entered Mines 6420 | -8/Mines | Build established: Scavenger-Skirmisher 6826 | -8/Mines | Discovered exit to Materials (range 9) 7021 | -8/Mines | Entered Materials 7021 | -8/Materials | Evolved 2 slots: Utility x2 7022 | -8/Materials | Identified exit to Storage 7023 | -8/Materials | Identified exit to Factory 7705 | -8/Materials | Repaired Shield Generator 7954 | -8/Materials | Build established: Skirmisher 8308 | -8/Materials | Discovered exit to Factory (range 5) 8499 | -8/Materials | Repaired Shield Generator 9001 | -8/Materials | Learned Storage trap positions 9073 | -8/Materials | Learned Storage stockpile data 9097 | -8/Materials | Learned location of 1 exit from Lower Caves 9133 | -8/Materials | Learned Factory non-interactive machine intel 9159 | -8/Materials | Identified exit to Garrison 9200 | -8/Materials | Entered Garrison 9326 | -8/Garrison | Triggered checkpoint 9409 | -8/Garrison | Phase Generator disabled 9570 | -8/Garrison | Discovered new exit (range 14) 9707 | -8/Garrison | Installed Relay Interface Framework 9739 | -8/Garrison | Garrison Relay disabled 9850 | -8/Garrison | Triggered checkpoint 9903 | -8/Garrison | Garrison Relay disabled 10064 | -8/Garrison | Triggered checkpoint 10159 | -8/Garrison | Discovered new exit (range 11) 10399 | -8/Garrison | Entered Materials 10399 | -8/Materials | Accompanied by 2 allies 10695 | -8/Materials | Discovered exit to Factory (range 11) 10900 | -8/Materials | Discovered exit to Factory (range 16) 11029 | -8/Materials | Lost 3 parts (1n2w) 11033 | -8/Materials | Destroyed 8 combat bots 11198 | -8/Materials | Discovered exit to Storage (range 8) 11289 | -8/Materials | Core integrity fell below 50% 11549 | -8/Materials | Build established: Scavenger-Skirmisher 11655 | -8/Materials | Repaired Cld. Ion Engine 11869 | -8/Materials | Discovered exit to Factory (range 12) 11987 | -8/Materials | Build established: Skirmisher 12529 | -8/Materials | Identified exit to Garrison 12531 | -8/Materials | Entered Garrison 12683 | -8/Garrison | Triggered checkpoint 12733 | -8/Garrison | Garrison Relay disabled 12764 | -8/Garrison | Rescued a captive Derelict 12772 | -8/Garrison | Rescued a captive Derelict 12887 | -8/Garrison | Triggered checkpoint 12896 | -8/Garrison | Triggered checkpoint 12957 | -8/Garrison | Destroyed 7 combat bots 13044 | -8/Garrison | Discovered exit to Factory (range 15) 13080 | -8/Garrison | Discovered exit to Factory (range 70) 13080 | -8/Garrison | Discovered exit to Factory (range 51) 13080 | -8/Garrison | Discovered exit to Factory (range 7) 13183 | -8/Garrison | Triggered checkpoint 13353 | -8/Garrison | Triggered checkpoint 13449 | -8/Garrison | Expanded RIF knowledge: Coupler Efficiency 13469 | -8/Garrison | Garrison Relay disabled 13561 | -8/Garrison | Entered Factory 13561 | -7/Factory | Evolved 2 slots: Propulsion x1, Utility x1 13562 | -7/Factory | Loaded intel: 205 non-interactive machine locations 13563 | -7/Factory | FarCom data flow suspended 13707 | -7/Factory | Build established: Mutant 13726 | -7/Factory | Repaired Broken Arm. Treads 14279 | -7/Factory | Discovered new exit (range 9) 14760 | -7/Factory | Identified exit to Garrison 14792 | -7/Factory | Entered Garrison 14809 | -7/Garrison | Expanded RIF knowledge: Watcher Feeds 14839 | -7/Garrison | Rescued a captive Derelict 14882 | -7/Garrison | Triggered checkpoint 14901 | -7/Garrison | Garrison Relay disabled 15110 | -7/Garrison | AWS/Thermal suddenly broke down 15138 | -7/Garrison | Destroyed 8 combat bots 15196 | -7/Garrison | Triggered checkpoint 15230 | -7/Garrison | Discovered new exit (range 5) 15288 | -7/Garrison | Discovered new exit (range 10) 15328 | -7/Garrison | Triggered checkpoint 15442 | -7/Garrison | Lost 3 parts (1u2w) 15518 | -7/Garrison | Garrison Relay disabled 15638 | -7/Garrison | Triggered checkpoint 15707 | -7/Garrison | Discovered new exit (range 10) 15730 | -7/Garrison | Triggered checkpoint 15855 | -7/Garrison | Entered Factory 16667 | -7/Factory | Build established: Scavenger-Tank 16976 | -7/Factory | Discovered new exit (range 16) 17142 | -7/Factory | Build established: Mutant 17163 | -7/Factory | Identified exit to Garrison 17163 | -7/Factory | Entered Garrison 17183 | -7/Garrison | Expanded RIF knowledge: Threat Obfuscation 17262 | -7/Garrison | Triggered checkpoint 17313 | -7/Garrison | Triggered checkpoint 17462 | -7/Garrison | Lost 3 parts (1n2w) 17522 | -7/Garrison | Core integrity fell below 50% 17576 | -7/Garrison | Lost 3 parts (1n2w) 17649 | -7/Garrison | Triggered checkpoint 17678 | -7/Garrison | Discovered new exit (range 13) 17842 | -7/Garrison | Build established: Scavenger-Tank 17904 | -7/Garrison | Entered Factory 17904 | -6/Factory | Evolved 2 slots: Utility x2 17905 | -6/Factory | Identified exit to Extension 18350 | -6/Factory | Discovered new exit (range 23) 18517 | -6/Factory | Repaired Hvy. Missile Launcher 18632 | -6/Factory | Discovered new exit (range 33) 18633 | -6/Factory | Discovered exit to Extension (range 6) 18904 | -6/Factory | Entered Extension 19389 | -6/Extension | Rescued a captive Derelict 19390 | -6/Extension | Rescued a captive Derelict 19535 | -6/Extension | P-60 Hacker assimilated allied 96-E3M(l) 19607 | -6/Extension | Rescued a captive Derelict 19805 | -6/Extension | Spotted B-75 Beast 19818 | -6/Extension | Destroyed B-75 Beast 19846 | -6/Extension | Destroyed B-75 Beast 20053 | -6/Extension | Rescued a captive Derelict 20165 | -6/Extension | Rescued A7 20324 | -6/Extension | Rescued a captive Derelict 20325 | -6/Extension | Rescued a captive Derelict 20336 | -6/Extension | Rescued a captive Derelict 20340 | -6/Extension | Rescued a captive Derelict 20349 | -6/Extension | Rescued a captive Derelict 20382 | -6/Extension | Rescued a captive Derelict 20426 | -6/Extension | Discovered new exit (range 10) 20428 | -6/Extension | Discovered new exit (range 6) 20512 | -6/Extension | Entered Cetus 20512 | -6/Cetus | Accompanied by 17 allies (A7) 20517 | -6/Cetus | Acquired a Cetus Manufacturing Module code from A7 20534 | -6/Cetus | Allies destroyed Cetus Guard 20537 | -6/Cetus | Build established: Commander-Tank 20538 | -6/Cetus | Allies destroyed Cetus Guard 20540 | -6/Cetus | Allies destroyed Cetus Guard 20552 | -6/Cetus | Allies destroyed Cetus Guard 20688 | -6/Cetus | Started Cetus Manufacturing Module 20713 | -6/Cetus | Manufactured an Enhanced Grunt 20725 | -6/Cetus | Escorted A7 to Cetus Mainframe 20738 | -6/Cetus | Manufactured an Enhanced Grunt 20763 | -6/Cetus | Manufactured an Enhanced Grunt 20788 | -6/Cetus | Manufactured an Enhanced Grunt 20813 | -6/Cetus | Manufactured an Enhanced Grunt 20922 | -6/Cetus | Discovered new exit (range 15) 20972 | -6/Cetus | Discovered new exit (range 27) 21014 | -6/Cetus | Allies destroyed Cetus Guard 21014 | -6/Cetus | Allies destroyed Cetus Guard 21023 | -6/Cetus | Allies destroyed Cetus Guard 21027 | -6/Cetus | Allies destroyed Cetus Guard 21048 | -6/Cetus | Met Revision 17 21051 | -6/Cetus | Lost 5 allies 21153 | -6/Cetus | Entered Archives 21153 | -6/Archives | Accompanied by 15 allies (A7) 21158 | -6/Archives | Received a hacking code to weaken MAIN.C 21254 | -6/Archives | Lost 4 allies 21442 | -6/Archives | Discovered new exit (range 15) 21509 | -6/Archives | Build established: Scavenger-Tank 21529 | -6/Archives | Discovered new exit (range 16) 21589 | -6/Archives | Discovered new exit (range 16) 21660 | -6/Archives | Entered Hub_04(d) 21660 | -6/Hub_04(d) | Accompanied by 8 allies 21660 | -6/Hub_04(d) | Discovered new exit (range 10) 21942 | -6/Hub_04(d) | Network Hub disabled 21942 | -6/Hub_04(d) | Network Hub disabled 21952 | -6/Hub_04(d) | Spotted Lightning 21953 | -6/Hub_04(d) | Spotted Lightning 21964 | -6/Hub_04(d) | Spotted Lightning 21973 | -6/Hub_04(d) | Allies destroyed Lightning 21981 | -6/Hub_04(d) | System corruption reached 10% 21981 | -6/Hub_04(d) | Spotted Lightning 21982 | -6/Hub_04(d) | Spotted Lightning 21983 | -6/Hub_04(d) | Destroyed Lightning 21987 | -6/Hub_04(d) | Allies destroyed Lightning 22009 | -6/Hub_04(d) | Found Prototype Processor 22009 | -6/Hub_04(d) | Identified Exp. Targeting Computer 22078 | -6/Hub_04(d) | Found Prototype Device 22078 | -6/Hub_04(d) | Identified Exp. Phase Shifter 22102 | -6/Hub_04(d) | Found Prototype Energy Cannon 22102 | -6/Hub_04(d) | Identified EMDS 22315 | -6/Hub_04(d) | Spotted B-75 Beast 22326 | -6/Hub_04(d) | Destroyed B-75 Beast 22847 | -6/Hub_04(d) | Discovered new exit (range 12) 22887 | -6/Hub_04(d) | Spotted Lightning 22894 | -6/Hub_04(d) | Core integrity fell below 50% 22898 | -6/Hub_04(d) | Destroyed Lightning 22898 | -6/Hub_04(d) | Destroyed Lightning 22938 | -6/Hub_04(d) | Destroyed Lightning 23007 | -6/Hub_04(d) | Network Hub disabled 23139 | -6/Hub_04(d) | Discovered new exit (range 13) 23272 | -6/Hub_04(d) | Discovered new exit (range 12) 23377 | -6/Hub_04(d) | Network Hub disabled 23458 | -6/Hub_04(d) | Found Exp. Phase Shifter 23579 | -6/Hub_04(d) | Entered Factory 23579 | -5/Factory | Evolved 2 slots: Propulsion x1, Utility x1 23636 | -5/Factory | Discovered new exit (range 16) 23729 | -5/Factory | Discovered new exit (range 7) 23783 | -5/Factory | Discovered new exit (range 13) 23906 | -5/Factory | Build established: Hacker-Mutant 23994 | -5/Factory | Discovered new exit (range 39) 24025 | -5/Factory | Identified exit to Factory 24111 | -5/Factory | Central database locked down 24215 | -5/Factory | Manually triggered Chute Trap 24215 | -5/Factory | Sucked down chute 24215 | -5/Factory | Entered Waste 24223 | -5/Waste | Spotted C-40 Crusher 24230 | -5/Waste | EMP discharged 24230 | -5/Waste | System corruption reached 10% 24235 | -5/Waste | 1 allies followed down the chute 24239 | -5/Waste | Spotted C-40 Crusher 24241 | -5/Waste | Spotted C-40 Crusher 24242 | -5/Waste | Spotted C-40 Crusher 24246 | -5/Waste | Spotted C-40 Crusher 24261 | -5/Waste | Spotted C-40 Crusher 24266 | -5/Waste | Discovered new exit (range 16) 24272 | -5/Waste | Identified exit to Factory 24272 | -5/Waste | Entered Factory 24516 | -5/Factory | Fabricated B-60 Warrior (x3) 24518 | -5/Factory | Identified exit to Upper Caves 24557 | -5/Factory | Fabricated Gravity Neutralizer (x1) 24576 | -5/Factory | Learned location of 3 exits from Research 24668 | -5/Factory | Learned Testing terminal intel 24701 | -5/Factory | Fabricated Exp. Utility Shielding (x1) 24727 | -5/Factory | Learned Extension garrison access intel 24739 | -5/Factory | Entered another Factory area 24739 | -4/Factory | Evolved 2 slots: Utility x2 24740 | -4/Factory | Identified exit to Upper Caves 24906 | -4/Factory | Identified exit to Research 24920 | -4/Factory | Central database locked down 24922 | -4/Factory | Found Prototype Processor 24922 | -4/Factory | Identified Exp. Signal Interpreter 24925 | -4/Factory | Found Exp. Signal Interpreter 24960 | -4/Factory | Fabricated Lrn. Sensor Array? 25041 | -4/Factory | Learned Armory trap positions 25245 | -4/Factory | Loaded intel: 218 non-interactive machine locations 25323 | -4/Factory | Learned 8 Research zone layouts 25379 | -4/Factory | Learned location of 2 exits from Factory 25420 | -4/Factory | Learned Armory fabricator intel 25638 | -4/Factory | Fabricated Exp. Utility Shielding? 25751 | -4/Factory | Manually triggered Chute Trap 25751 | -4/Factory | Sucked down chute 25751 | -4/Factory | Entered Waste 25752 | -4/Waste | Joined by Warlord forces that had cleared the area 25852 | -4/Waste | Discovered new exit (range 14) 25931 | -4/Waste | A Compactor rumbled back to life 25931 | -4/Waste | Spotted C-40 Crusher 25937 | -4/Waste | Allies destroyed C-40 Crusher 25953 | -4/Waste | Identified exit to Factory 25985 | -4/Waste | Entered Factory 25985 | -4/Factory | Accompanied by 18 allies 26019 | -4/Factory | Garrison activated, responded to threat 26082 | -4/Factory | Lost 10 allies 26378 | -4/Factory | Lost 3 allies 26468 | -4/Factory | Repaired Exp. Utility Shielding? 26472 | -4/Factory | Learned 4 Research zone layouts 26516 | -4/Factory | Fabricated Exp. Terrain Scan Processor (x1) 26598 | -4/Factory | Learned Research stockpile data 26647 | -4/Factory | Learned location of 1 exit from Upper Caves 26676 | -4/Factory | Entered Research 26676 | -3/Research | Accompanied by 2 allies 26676 | -3/Research | Evolved 2 slots: Utility x2 26677 | -3/Research | Identified exit to Quarantine 26677 | -3/Research | Identified exit to Research 26678 | -3/Research | Identified exit to Armory 26746 | -3/Research | Entered Quarantine 26786 | -3/Quarantine | Found Alien Artifact 26831 | -3/Quarantine | Found Alien Artifact 26831 | -3/Quarantine | Identified Subatomic Replicator 26902 | -3/Quarantine | Found Alien Reactor 26902 | -3/Quarantine | Identified Matter Drive 26942 | -3/Quarantine | Learned location of Armory (-3) 26963 | -3/Quarantine | Build established: Hacker-Scout 26970 | -3/Quarantine | Identified Core Reset Matrix 27004 | -3/Quarantine | Learned location of 1 exit from Research 27056 | -3/Quarantine | Learned 12 Access zone layouts 27136 | -3/Quarantine | Identified exit to Protoforge 27136 | -3/Quarantine | Identified exit to Section 7 27266 | -3/Quarantine | Found Alien Energy Cannon 27300 | -3/Quarantine | Learned 8 Access zone layouts 27385 | -3/Quarantine | Central database locked down 27704 | -3/Quarantine | Found Alien Artifact 27704 | -3/Quarantine | Identified Dimensional Node Initializer 27704 | -3/Quarantine | Initialized slip node 27709 | -3/Quarantine | Found Alien Artifact 27721 | -3/Quarantine | Found Alien Impact Weapon 27721 | -3/Quarantine | Identified Core Stripper 27723 | -3/Quarantine | Identified Core Cannon 27761 | -3/Quarantine | Spotted Fortress 27795 | -3/Quarantine | Entered Section 7 27826 | -3/Section 7 | Identified Transdimensional Reconstructor 27840 | -3/Section 7 | Found Integrity Redistributor 27885 | -3/Section 7 | Found Integrated Dissipator 27886 | -3/Section 7 | Installed Integrated Dissipator, increased core heat dissipation (+20) 28079 | -3/Section 7 | Spotted S7 Guard 28086 | -3/Section 7 | Found Alien Artifact 28094 | -3/Section 7 | Warped through subspace 28150 | -3/Section 7 | Identified Core Regenerator 28354 | -3/Section 7 | Found Transdimensional Reconstructor 28539 | -3/Section 7 | Found Alien Artifact 28539 | -3/Section 7 | Identified LRC Storage 28539 | -3/Section 7 | Installed LRC Storage, increased inventory capacity (+2) 28543 | -3/Section 7 | Found LRC Storage 28543 | -3/Section 7 | Installed LRC Storage, increased inventory capacity (+2) 28566 | -3/Section 7 | Found Alien Artifact 28567 | -3/Section 7 | Found Alien Artifact 28569 | -3/Section 7 | Found Alien Artifact 28599 | -3/Section 7 | Identified Core Expander (x3) 28625 | -3/Section 7 | Spotted B-99 Colossus 28715 | -3/Section 7 | Spotted S7 Guard 28723 | -3/Section 7 | Found Alien Artifact 28761 | -3/Section 7 | Entered Research 28761 | -2/Research | Evolved 2 slots: Power x1, Propulsion x1 28762 | -2/Research | Identified exit to Testing 28801 | -2/Research | Build established: Hacker-Skirmisher 28939 | -2/Research | Identified exit to Access 28989 | -2/Research | Installed Core Expander, added new Utility slot 29110 | -2/Research | Build established: Hacker-Scout 29210 | -2/Research | Entered Testing 29211 | -2/Testing | Loaded intel: 9 terminal locations 29217 | -2/Testing | Identified Navigation Efficiency Matrix 29308 | -2/Testing | Found Prototype Ballistic Cannon 29308 | -2/Testing | Identified Perforator 29412 | -2/Testing | Spotted Alpha 7 29516 | -2/Testing | Fabricated Exp. Coolant Injector (x1) 29520 | -2/Testing | Found Fusion Bomb Launcher 29526 | -2/Testing | Entered Access 29526 | -1/Access | Evolved 2 slots: Power x1, Propulsion x1 29527 | -1/Access | Identified exit to Command 29755 | -1/Access | Used Integrity Redistributor, redistributed integrity from core (-275) 29864 | -1/Access | Entered Command 29905 | -1/Command | Phase Generator disabled 29925 | -1/Command | Disengaged cave seal 29956 | -1/Command | Discovered new exit (range 17) 30045 | -1/Command | Crushed by falling debris 30179 | -1/Command | Disengaged cave seal 30265 | -1/Command | Lost 7 parts (2p2n2u1w) 30288 | -1/Command | Wild derelicts emerged from the dark tunnel 30289 | -1/Command | System corruption reached 10% 30294 | -1/Command | Spotted M Guard 30294 | -1/Command | Spotted M Guard 30294 | -1/Command | Spotted Combat Programmer 30313 | -1/Command | Spotted Combat Programmer 30348 | -1/Command | Destroyed Combat Programmer 30349 | -1/Command | Destroyed Combat Programmer 30364 | -1/Command | Used Core Regenerator, restored core integrity (+400) 30384 | -1/Command | Met MAIN.C 30399 | -1/Command | Lost 11 parts (1p6n3u1w) 30410 | -1/Command | 0b10 Conduit disabled 30411 | -1/Command | Used Subatomic Replicator to create Alien Artifact 30418 | -1/Command | Identified Supercharged TR 30418 | -1/Command | Warped through subspace to slip node 30418 | -1/Command | Discovered new exit (range 5) 30419 | -1/Command | Core integrity fell below 50% 30440 | -1/Command | Identified exit to Access_0 30440 | -1/Command | Entered Access_0 30441 | -1/Access_0 | Met Architect 30470 | -1/Access_0 | A6 warped into view 30494 | -1/Access_0 | Core integrity fell below 20% 30501 | -1/Access_0 | Lost 6 parts (1p2n2u1w) 30506 | -1/Access_0 | Destroyed by Enhanced Grunt with Neutron Cannon Last Messages --------------- 30464_ Penetrated by Quantum Shear. 30464_ Quantum Shear penetrates Wall. 30465_ Acquired Quantum Shading Machine. 30468_ Quantum Shear penetrates Wall. A6 warps into view. 30470_ A6: "I'm here! Did I miss the party? Oh hello there." 30470_ A6 follow-up attacks with Enh. Force Lance. 30470_ Exp. Q-thruster destroyed. 30475_ System corrupted: Heat flow error (+173). 30480_ Quantum Shear penetrates A6. 30482_ Penetrated by Quantum Shear. 30490_ A6 follow-up attacks with Enh. Force Lance. 30493_ Penetrated by Quantum Shear. 30493_ Quantum Shear penetrates Wall. 30497_ System corrupted: Exp. Coolant Injector fused. 30501_ A6 follow-up attacks with Enh. Force Lance. 30502_ Penetrated by Quantum Shear. 30502_ Exp. Coolant Injector destroyed. 30502_ Penetrated by Quantum Shear. [Achievement: Superachiever] Map ----- +----------------------------------------------------+ | ?????????????????????????????????????????????????? | | ?????????????????????????????????????????????????? | | ?????????????????????????????????????????????????? | | ???????????????????????????????????????????####### | | ??????????????????????????????????????????##" "" | | ??????????????????????????????????????????# | | ??????????????????????????????????????????# """" | | ??????????????????????????????????????????# "& " | | ??????????????????????????????????????????# """" | | ??????????????????????????????????????????# | | ??????????????????????????????????????????###### | | ???????????????????????????????????????????#####" | | ???????????????????????????????????????????# | | ??????????????????????????##???????????????# | | ?????????????????????????## ???????????????# ""## | | ?????????????????????????? ???????????????# "??? | | ???????????????#??????????# ###????????????# "??? | | ??????????????## ????????## #????????????# #??? | | ?????????????## ???????# #????????????# #??? | | ????????????## ???????# #??###???????# #??? | | ???????????? #?##### ##?# ##??????# #??? | | ???????????# ## ## ### #??????# #??? | | ?????????????? g ## #??????# #??? | | ?????????????????# ####???# #??? | | ???????????????????# g ##### #??? | | ???????????????????????#g@ #??? | | ????????????????????####p 0####### | | ????????????????????# ; ##?????#####"###### | | ???????????????????# ## #??????????###????? | | ?????????????????????## ##?????????????????# | | ?????????????????????#; #??????????????????# | | ?????????????????????## ;;# #?????????????????# | | ??????????????????????###### #?????????????????? | | ???????????????????????????# ###???????????????##? | | ???????????????????????????###?????????????????# # | | ???????????????????????????????????????????????# | | ???????????????????????????????????????????????# | | ???????????????????????????????????????????????## | | ????????????????????????????????????#???????????## | | ????????????????????????????????????# ???????????# | | ???????????????????????????????????## ?????????# | | ???????????????????????????????????# #???????# | | ???????????????????????????????????# ?????? | | ???????????????????????????????????# ????? | | ???????????????????????????????????# #### | | ????????????????????????????????????????# | | ?????????????????????????????????????????# | | ?????????????????????????????????????????# ## | | ?????????????????????????????????????????## ##?? | | ??????????????????????????????????????????## ????? | +----------------------------------------------------+ Best States ------------- Heat Dissipation 89 Coolant Potential 120 Energy Generation 63 Energy Capacity 420 Matter Stores 300 Matter Capacity 300 Sight Range 16 Robot Scan Range 18 Terrain Scan Range 24 Terrain Scan Density 1010 ECM Strength 2 Cloak Strength 4 Additional Mass Support 20 Armor Coverage 600 Resistance: TH 20 Core Shielding 30 Utility Shielding 90 Phase Shifting 20 Evasion (%) 66 Targeting Accuracy 12 Core Analysis 6 Recoil Reduction 4 Offensive Hacking 52 Defensive Hacking 10 Relay Coupler Types 3 Relay Coupler Value 74 Authchip Count 1 Item Schematics ----------------- Huge Storage Unit | -9/Materials | Scanalyzed Assault Rifle | -9/Materials | Scanalyzed Plasma Cutter | -9/Materials | Hacked Imp. Utility Shielding | -8/Materials | Hacked Hardlight Generator | -8/Materials | Scanalyzed Lrg. Storage Unit | -8/Materials | Scanalyzed Lgt. Treads | -8/Materials | Scanalyzed Hvy. Assault Rifle | -8/Materials | Scanalyzed Lrn. Proton Cannon | -6/Hub_04(d) | Hacked Exp. Utility Shielding | -5/Factory | Hacked Adv. Cryofiber Web | -5/Factory | Hacked Impulse Thruster Array | -5/Factory | Hacked Gravity Neutralizer | -5/Factory | Hacked Lrn. Sensor Array | -4/Factory | Hacked Nanoactuators | -4/Factory | Hacked Exp. Terrain Scan Processor | -4/Factory | Hacked Cmb. Linear Gravjet | -4/Factory | Hacked Exp. Shield Generator | -3/Quarantine | Hacked Exp. Weapon Shielding | -3/Quarantine | Hacked Exp. Coolant Injector | -2/Research | Hacked Quantum Capacitor | -2/Research | Hacked Exp. Actuator Array | -2/Research | Hacked Cld. Q-thruster | -2/Testing | Hacked Robot Schematics ------------------ None Fabricated ------------ B-60 Warrior | x3 | -5/Factory | Preloaded Gravity Neutralizer | x1 | -5/Factory Exp. Utility Shielding | x1 | -5/Factory | Authchip Lrn. Sensor Array | x2 | -4/Factory Exp. Utility Shielding | x1 | -4/Factory Exp. Terrain Scan Processor | x1 | -4/Factory | Authchip Exp. Coolant Injector | x1 | -2/Testing Repaired ---------- Lgt. Cannon | 38% | -10/Materials Shield Generator | 23% | -8/Materials Shield Generator | 13% | -8/Materials Cld. Ion Engine | 13% | -8/Materials Arm. Treads | 63% | -7/Factory | Broken Hvy. Missile Launcher | 15% | -6/Factory Exp. Utility Shielding | 50% | -4/Factory Alien Tech Used ----------------- Subatomic Replicator Matter Drive Dimensional Node Initializer Core Stripper Core Cannon Integrated Dissipator Transdimensional Reconstructor LRC Storage Core Expander Integrity Redistributor Core Regenerator Supercharged TR Achievements -------------- 404 Superachiever Wheee! Challenges ------------ None Game ------ Seed ZionitePointyDatajack Manual? 0 Play Time 10:53:43 Cumulative 529.8 hours Start 2025.09.16 @ 00:28:23 End 2025.09.19 @ 22:57:46 Sessions 41 Manual Loads 0 Difficulty Rogue Special Mode None Game No. 195 Rogue 195 Adventurer 0 Explorer 0 Win Type - Total 22 Types 13/1/4/2/0/1/0/1/0/0 Lore% 90 Gallery% 83 Achievement% 75 Wizard Run 0 Options --------- Layout 0 ASCII 0 Keyboard 0 Movement Numpad Keybinds 0 Fullscreen 2 Font 18/SmallcapsGlow Map View 76x50 Zoom Use 2% Tactical HUD 1 Map Filters NONE Filters NONE Steam 1 RUN: e3bf844e-0637-4717-a110-c1e2315032c4